Body Name,Body,Service Division Label,Service Division Code,Organisational Unit,Expenditure Category,Expenditure Code,CIPFA detailed expediture type,CIPFA detailed expediture code,Narrative,Date,Transaction number,Net Amount,Capital and Revenue,Supplier Name,Supplier ID
Chorley Borough Council,http://statistics.data.gov.uk/id/local-authority/30UE,Corporate Management,1008,NEW Policy & Governance,Promotional Expenses,40159,Miscellaneous Expenses,5034,Six weeks radio advertising to promote Market Walk and holiday activities,04/05/2016,112004,822.03,Revenue,107 The Bee,51152
Chorley Borough Council,http://statistics.data.gov.uk/id/local-authority/30UE,Corporate Management,1008,NEW Early Intervention,Taxi Testing & Vehicle Safety Report,40234,Services,5027,taxi test,18/05/2016,112282,71.75,Revenue,A & A Auto Care Limited,19361
Chorley Borough Council,http://statistics.data.gov.uk/id/local-authority/30UE,Corporate Management,1008,NEW Early Intervention,Taxi Testing & Vehicle Safety Report,40234,Services,5027,mot,18/05/2016,112282,383.95,Revenue,A & A Auto Care Limited,19361
Chorley Borough Council,http://statistics.data.gov.uk/id/local-authority/30UE,Service Management & Support,1009,NEW Customer & Digital,Supplies-Grounds Maintenance,40025,"Equipment, Furniture & Materia",5023,"2 tins of black paint for wood 3 tins of rosewood pai 5 x 2`` brushes5 x 3`` brushes",18/05/2016,112377,265.49,Revenue,Ace Decor Ltd,17182
Chorley Borough Council,http://statistics.data.gov.uk/id/local-authority/30UE,Unapportionable Central OHeads,1009,NEW Policy & Governance,Rent/Hire Of Premises,20017,Premises Rents,5007,Room Hire & Catering: The Banqueting Suite at Birmingham Council House,11/05/2016,112054,"1,603.00",Revenue,Acivico,75542
Chorley Borough Council,http://statistics.data.gov.uk/id/local-authority/30UE,Elections,1012,NEW Policy & Governance,Rent/Hire Of Premises,20017,Premises Rents,5007,Hire of room for polling station on 5 May 2016,18/05/2016,111856,450.00,Revenue,Active Nation UK Ltd,17144
Chorley Borough Council,http://statistics.data.gov.uk/id/local-authority/30UE,Democratic Represent and  Mgnt,1007,NEW Early Intervention,External Contractor - Trust or Charity,50008,Private Contractors,5042,Active Nation Management Fee Uplift for April 2016 Payment,18/05/2016,112444,510.86,Revenue,Active Nation UK Ltd,17144
Chorley Borough Council,http://statistics.data.gov.uk/id/local-authority/30UE,Democratic Represent and  Mgnt,1007,NEW Early Intervention,External Contractor - Trust or Charity,50008,Private Contractors,5042,Active Nation Management Fee 2016/17 For the Period May 2016 - March 2017 To be invoiced monthly at the start of each,18/05/2016,112445,"31,722.41",Revenue,Active Nation UK Ltd,17144
Chorley Borough Council,http://statistics.data.gov.uk/id/local-authority/30UE,Democratic Represent and  Mgnt,1007,NEW Customer & Digital,Miscellaneous Expenses,40200,Miscellaneous Expenses,5034,Resurfacing of crazy paving path adjacent to Park Road and installation of hand rail to short section.,18/05/2016,112395,"2,500.00",Revenue,Adlington Dry Stone Walling,63372
Chorley Borough Council,http://statistics.data.gov.uk/id/local-authority/30UE,Democratic Represent and  Mgnt,1007,NEW Customer & Digital,Miscellaneous Expenses,40200,Miscellaneous Expenses,5034,Miscellaneous Expense,18/05/2016,112395,"3,005.00",Revenue,Adlington Dry Stone Walling,63372
Chorley Borough Council,http://statistics.data.gov.uk/id/local-authority/30UE,Democratic Represent and  Mgnt,1007,NEW Customer & Digital,Supplies-Grounds Maintenance,40025,"Equipment, Furniture & Materia",5023,"Erect a stone planter @ Great Meadow, Astley Village",20/05/2016,112520,"1,400.00",Revenue,Adlington Dry Stone Walling,63372
Chorley Borough Council,http://statistics.data.gov.uk/id/local-authority/30UE,Democratic Represent and  Mgnt,1007,NEW Customer & Digital,Supplies-Grounds Maintenance,40025,"Equipment, Furniture & Materia",5023,labour,20/05/2016,112520,"1,100.00",Revenue,Adlington Dry Stone Walling,63372
Chorley Borough Council,http://statistics.data.gov.uk/id/local-authority/30UE,Service Management & Support,1009,NEW Customer & Digital,External Contractor,40198,Miscellaneous Expenses,5034,Rub down and stain 10 x benches in the Adlington area as discussed at price quoted,25/05/2016,112567,350.00,Revenue,Adrian Price,75750
Chorley Borough Council,http://statistics.data.gov.uk/id/local-authority/30UE,Unapportionable Central OHeads,1009,NEW Policy & Governance,Burglar Alarms & Security Systems,20075,Fixtures and Fittings,5010,Installation of new lock on the Atrium door leading to the Legal Office enquiry number 0010039347 - Job number 135668/0,25/05/2016,112651,896.00,Revenue,ADT Fire & Security,16645
Chorley Borough Council,http://statistics.data.gov.uk/id/local-authority/30UE,Capital,Capital,NEW Policy & Governance,Main Contractor,3007,Capital Expenditure,Capital,"Architectural History Practice - Additional work for Conservation Plan:Extra 2 days work to visit site re park, review previous",04/05/2016,112005,"1,800.00",Capital,"AHP - Architectural History Practice, Ltd",66375
Chorley Borough Council,http://statistics.data.gov.uk/id/local-authority/30UE,Capital,Capital,NEW Policy & Governance,Main Contractor,3007,Capital Expenditure,Capital,outstanding balcnace,13/05/2016,112146,"2,150.00",Capital,"AHP - Architectural History Practice, Ltd",66375
Chorley Borough Council,http://statistics.data.gov.uk/id/local-authority/30UE,Unapportionable Central OHeads,1009,NEW Customer & Digital,Bank Charges,40151,Miscellaneous Expenses,5034,monthly charges,13/05/2016,112147,"2,014.32",Revenue,Allpay Net Ltd,17242
Chorley Borough Council,http://statistics.data.gov.uk/id/local-authority/30UE,Democratic Represent and  Mgnt,1007,NEW Customer & Digital,Supplies-Grounds Maintenance,40025,"Equipment, Furniture & Materia",5023,10 Barrier Baskets liners (black) 11 pole baskets liners (black),04/05/2016,111927,440.80,Revenue,Amethyst Horticulture Ltd,19611
Chorley Borough Council,http://statistics.data.gov.uk/id/local-authority/30UE,Central Support Services,1009,NEW Customer & Digital,Computer Equipment-Maintenance,40105,Communication and Computing,5028,managed infrastructure,05/05/2016,112091,"28,000.00",Revenue,ANS Group,22502
Chorley Borough Council,http://statistics.data.gov.uk/id/local-authority/30UE,Central Support Services,1009,NEW Customer & Digital,Computer Equipment-Maintenance,40105,Communication and Computing,5028,contract change,13/05/2016,112275,"2,482.17",Revenue,ANS Group,22502
Chorley Borough Council,http://statistics.data.gov.uk/id/local-authority/30UE,Central Support Services,1009,NEW Customer & Digital,Computer Software-Maintenance,40107,Communication and Computing,5028,contract,05/05/2016,112276,"30,018.84",Revenue,ANS Group,22502
Chorley Borough Council,http://statistics.data.gov.uk/id/local-authority/30UE,Central Support Services,1009,NEW Customer & Digital,Consultants` Fees,40077,Services,5027,PROFESSIONAL SERVICES,13/05/2016,112277,"12,500.00",Revenue,ANS Group,22502
Chorley Borough Council,http://statistics.data.gov.uk/id/local-authority/30UE,Central Support Services,1009,NEW Customer & Digital,Consultants` Fees,40077,Services,5027,ANS Professional Services - Pre-Paid Days 100% Invoice,13/05/2016,112278,"2,400.00",Revenue,ANS Group,22502
Chorley Borough Council,http://statistics.data.gov.uk/id/local-authority/30UE,Central Support Services,1009,NEW Customer & Digital,Computer Equipment-Maintenance,40105,Communication and Computing,5028,Managed infrastructure contract - February 2016,13/05/2016,112279,"2,000.00",Revenue,ANS Group,22502
Chorley Borough Council,http://statistics.data.gov.uk/id/local-authority/30UE,Central Support Services,1009,NEW Customer & Digital,Computer Equipment-Maintenance,40105,Communication and Computing,5028,Managed infrastructure contract - March 2016,13/05/2016,112279,"2,000.00",Revenue,ANS Group,22502
Chorley Borough Council,http://statistics.data.gov.uk/id/local-authority/30UE,Central Support Services,1009,NEW Customer & Digital,Computer Equipment-Maintenance,40105,Communication and Computing,5028,Managed infrastructure contract - April 2016,13/05/2016,112279,"2,000.00",Revenue,ANS Group,22502
Chorley Borough Council,http://statistics.data.gov.uk/id/local-authority/30UE,Central Support Services,1009,NEW Customer & Digital,Computer Equipment-Maintenance,40105,Communication and Computing,5028,Managed infrastructure contract - May 2016,13/05/2016,112279,"2,000.00",Revenue,ANS Group,22502
Chorley Borough Council,http://statistics.data.gov.uk/id/local-authority/30UE,Central Support Services,1009,NEW Customer & Digital,Computer Equipment-Maintenance,40105,Communication and Computing,5028,Managed infrastructure contract - June 2016,13/05/2016,112279,"2,000.00",Revenue,ANS Group,22502
Chorley Borough Council,http://statistics.data.gov.uk/id/local-authority/30UE,Central Support Services,1009,NEW Customer & Digital,Computer Equipment-Maintenance,40105,Communication and Computing,5028,Managed infrastructure contract - July 2016,13/05/2016,112279,"2,000.00",Revenue,ANS Group,22502
Chorley Borough Council,http://statistics.data.gov.uk/id/local-authority/30UE,Central Support Services,1009,NEW Customer & Digital,Computer Equipment-Maintenance,40105,Communication and Computing,5028,Managed infrastructure contract - August 2016,13/05/2016,112279,"2,000.00",Revenue,ANS Group,22502
Chorley Borough Council,http://statistics.data.gov.uk/id/local-authority/30UE,Central Support Services,1009,NEW Customer & Digital,Computer Equipment-Maintenance,40105,Communication and Computing,5028,Managed infrastructure contract - September 2016,13/05/2016,112279,"2,000.00",Revenue,ANS Group,22502
Chorley Borough Council,http://statistics.data.gov.uk/id/local-authority/30UE,Capital,Capital,NEW Customer & Digital,Main Contractor,3007,Capital Expenditure,Capital,Supply of paint and labour to paint fencing and entrances at Carr Brook plus play equipment,06/05/2016,111995,936.00,Capital,AP Broom Landscapes,67257
Chorley Borough Council,http://statistics.data.gov.uk/id/local-authority/30UE,Capital,Capital,NEW Customer & Digital,Main Contractor,3007,Capital Expenditure,Capital,"Q804872. Tatton Recreation Ground. Supply and install 32m of stone setts, lift and relay 25m of stone sets.",18/05/2016,112328,915.00,Capital,AP Broom Landscapes,67257
Chorley Borough Council,http://statistics.data.gov.uk/id/local-authority/30UE,Capital,Capital,NEW Customer & Digital,Main Contractor,3007,Capital Expenditure,Capital,"Install 3nr metal benches, metal handrail and bin. supply and install 75m of land drain and backfill with 6tonne pipe bedding",18/05/2016,112329,"2,480.00",Capital,AP Broom Landscapes,67257
Chorley Borough Council,http://statistics.data.gov.uk/id/local-authority/30UE,Service Management & Support,1009,NEW Customer & Digital,Supplies-Grounds Maintenance,40025,"Equipment, Furniture & Materia",5023,Manufacture and supply benches as on invoice number 01661,18/05/2016,112401,390.00,Revenue,Ark Welding Ltd,18154
Chorley Borough Council,http://statistics.data.gov.uk/id/local-authority/30UE,Service Management & Support,1009,NEW Customer & Digital,Supplies-Grounds Maintenance,40025,"Equipment, Furniture & Materia",5023,Manufacture and supply 3 park benches as on invoice number 01662,18/05/2016,112402,585.00,Revenue,Ark Welding Ltd,18154
Chorley Borough Council,http://statistics.data.gov.uk/id/local-authority/30UE,Service Management & Support,1009,NEW Customer & Digital,External Contractor,40198,Miscellaneous Expenses,5034,Carryout repairs to slide at Red Wing Drive as on invoice number 01665,18/05/2016,112404,280.00,Revenue,Ark Welding Ltd,18154
Chorley Borough Council,http://statistics.data.gov.uk/id/local-authority/30UE,Unapportionable Central OHeads,1009,NEW Policy & Governance,Car Leasing Payment,14100,Direct Employee Expenses,5001,Nissan Juke Tekna 1.5 dCi 110 Manual with 17`` Alloy Wheels (5dr) Hatchback Metallic gun metal Leather upholstery Diesel CO2,06/05/2016,112015,"2,750.88",Revenue,Arnold Clark Finance Ltd,20685
Chorley Borough Council,http://statistics.data.gov.uk/id/local-authority/30UE,Democratic Represent and  Mgnt,1007,NEW Customer & Digital,Supplies-Grounds Maintenance,40025,"Equipment, Furniture & Materia",5023,deposit,11/05/2016,112289,"1,863.00",Revenue,Ashton Patrol Dogs Security Services,75658
Chorley Borough Council,http://statistics.data.gov.uk/id/local-authority/30UE,Democratic Represent and  Mgnt,1007,NEW Customer & Digital,Supplies-Grounds Maintenance,40025,"Equipment, Furniture & Materia",5023,full amount credited,20/05/2016,112299,"3,726.00",Revenue,Ashton Patrol Dogs Security Services,75658
Chorley Borough Council,http://statistics.data.gov.uk/id/local-authority/30UE,Unapportionable Central OHeads,1009,NEW Policy & Governance,HR Recruitment Expenses,15200,Indirect Employee Expenses,5002,Assessment Exercise for Director Interviews,11/05/2016,112140,"1,850.00",Revenue,Assessment & Development Consultants Ltd,75648
Chorley Borough Council,http://statistics.data.gov.uk/id/local-authority/30UE,Service Management & Support,1009,NEW Customer & Digital,Registered Plant - Maintenance,40247,"Equipment, Furniture & Materia",5023,Supply items as on invoice number 180689/5 already supplied,25/05/2016,112610,602.04,Revenue,Balmers Garden Machinery,17075
Chorley Borough Council,http://statistics.data.gov.uk/id/local-authority/30UE,Corporate Management,1008,NEW Policy & Governance,Bank Charges,40151,Miscellaneous Expenses,5034,Miscellaneous Expense,20/05/2016,112412,490.53,Revenue,Barclaycard Merchant Services,61601
Chorley Borough Council,http://statistics.data.gov.uk/id/local-authority/30UE,Corporate Management,1008,NEW Policy & Governance,Bank Charges,40151,Miscellaneous Expenses,5034,Miscellaneous Expense,20/05/2016,112414,646.50,Revenue,Barclaycard Merchant Services,61601
Chorley Borough Council,http://statistics.data.gov.uk/id/local-authority/30UE,Unapportionable Central OHeads,1009,NEW Policy & Governance,Consultants` Fees,40077,Services,5027,"Support as agreed with Customer, Transactional and ICT services",11/05/2016,112065,"1,275.00",Revenue,REDACTED PERSONAL DATA,22238
Chorley Borough Council,http://statistics.data.gov.uk/id/local-authority/30UE,Democratic Represent and  Mgnt,1007,NEW Policy & Governance,Exhibitions & Special Events,40158,Miscellaneous Expenses,5034,"Sacrifice Project Film editing 400.00 Rail fares 145.35 = 545.35",11/05/2016,112094,400.00,Revenue,Biscuit Media Ltd,71751
Chorley Borough Council,http://statistics.data.gov.uk/id/local-authority/30UE,Democratic Represent and  Mgnt,1007,NEW Policy & Governance,Exhibitions & Special Events,40158,Miscellaneous Expenses,5034,train,11/05/2016,112094,145.35,Revenue,Biscuit Media Ltd,71751
Chorley Borough Council,http://statistics.data.gov.uk/id/local-authority/30UE,Corporate Management,1008,NEW Customer & Digital,Other Contributions,40145,Grants and Subscriptions,5031,Energy Costs,13/05/2016,112291,"5,000.00",Revenue,NAME REDACTED,73731
Chorley Borough Council,http://statistics.data.gov.uk/id/local-authority/30UE,Homelessness,1075,NEW Business Development & Growth,Gas,20014,Energy Costs,5006,Energy Costs,04/05/2016,111875,10.46,Revenue,British Gas Business,22242
Chorley Borough Council,http://statistics.data.gov.uk/id/local-authority/30UE,Democratic Represent and  Mgnt,1007,NEW Business Development & Growth,Gas,20014,Energy Costs,5006,Energy Costs,04/05/2016,111875,518.89,Revenue,British Gas Business,22242
Chorley Borough Council,http://statistics.data.gov.uk/id/local-authority/30UE,Community Development,1097,NEW Business Development & Growth,Gas,20014,Energy Costs,5006,Energy Costs,04/05/2016,111875,149.96,Revenue,British Gas Business,22242
Chorley Borough Council,http://statistics.data.gov.uk/id/local-authority/30UE,Unapportionable Central OHeads,1009,NEW Business Development & Growth,Gas,20014,Energy Costs,5006,Energy Costs,04/05/2016,111875,226.35,Revenue,British Gas Business,22242
Chorley Borough Council,http://statistics.data.gov.uk/id/local-authority/30UE,Democratic Represent and  Mgnt,1007,NEW Business Development & Growth,Gas,20014,Energy Costs,5006,Energy Costs,04/05/2016,111875,154.76,Revenue,British Gas Business,22242
Chorley Borough Council,http://statistics.data.gov.uk/id/local-authority/30UE,Democratic Represent and  Mgnt,1007,NEW Business Development & Growth,Gas,20014,Energy Costs,5006,Energy Costs,04/05/2016,111875,187.88,Revenue,British Gas Business,22242
Chorley Borough Council,http://statistics.data.gov.uk/id/local-authority/30UE,Democratic Represent and  Mgnt,1007,NEW Business Development & Growth,Gas,20014,Energy Costs,5006,Energy Costs,04/05/2016,111875,295.31,Revenue,British Gas Business,22242
Chorley Borough Council,http://statistics.data.gov.uk/id/local-authority/30UE,Democratic Represent and  Mgnt,1007,NEW Business Development & Growth,Gas,20014,Energy Costs,5006,Energy Costs,04/05/2016,111875,81.58,Revenue,British Gas Business,22242
Chorley Borough Council,http://statistics.data.gov.uk/id/local-authority/30UE,Democratic Represent and  Mgnt,1007,NEW Business Development & Growth,Gas,20014,Energy Costs,5006,Energy Costs,04/05/2016,111875,241.82,Revenue,British Gas Business,22242
Chorley Borough Council,http://statistics.data.gov.uk/id/local-authority/30UE,Unapportionable Central OHeads,1009,NEW Business Development & Growth,Gas,20014,Energy Costs,5006,Energy Costs,04/05/2016,111875,"1,509.69",Revenue,British Gas Business,22242
Chorley Borough Council,http://statistics.data.gov.uk/id/local-authority/30UE,Democratic Represent and  Mgnt,1007,NEW Business Development & Growth,Gas,20014,Energy Costs,5006,Energy Costs,04/05/2016,111875,"1,570.50",Revenue,British Gas Business,22242
Chorley Borough Council,http://statistics.data.gov.uk/id/local-authority/30UE,Unapportionable Central OHeads,1009,NEW Business Development & Growth,Gas,20014,Energy Costs,5006,Energy Costs,04/05/2016,111875,"1,300.36",Revenue,British Gas Business,22242
Chorley Borough Council,http://statistics.data.gov.uk/id/local-authority/30UE,Central Support Services,1009,NEW Customer & Digital,Telephones - Calls,40084,Communication and Computing,5028,usage charges,25/05/2016,112600,290.26,Revenue,British Telecommunications Plc,17131
Chorley Borough Council,http://statistics.data.gov.uk/id/local-authority/30UE,Central Support Services,1009,NEW Customer & Digital,Telephones - Other,40085,Communication and Computing,5028,one off,25/05/2016,112600,134.00,Revenue,British Telecommunications Plc,17131
Chorley Borough Council,http://statistics.data.gov.uk/id/local-authority/30UE,Central Support Services,1009,NEW Customer & Digital,Telephones - Rentals,40083,Communication and Computing,5028,recurring,25/05/2016,112600,"2,858.21",Revenue,British Telecommunications Plc,17131
Chorley Borough Council,http://statistics.data.gov.uk/id/local-authority/30UE,Business Support,1095,NEW Business Development & Growth,Miscellaneous Expenses,40200,Miscellaneous Expenses,5034,big grant,04/05/2016,111967,"5,808.74",Revenue,Buckshaw Bunnies Childcare Ltd (Gelston Manor Day,66660
Chorley Borough Council,http://statistics.data.gov.uk/id/local-authority/30UE,Corporate Management,1008,NEW Policy & Governance,Publicity - Advertising,40157,Miscellaneous Expenses,5034,Full page advert in Buckshaw Village newsletter for 12 months to promote Market Walk and Chorley Markets,18/05/2016,112095,448.00,Revenue,Buckshaw Leaflet Distribution,73050
Chorley Borough Council,http://statistics.data.gov.uk/id/local-authority/30UE,Unapportionable Central OHeads,1009,NEW Policy & Governance,Publicity - Advertising,40157,Miscellaneous Expenses,5034,Full page advert in Buckshaw Village newsletter for 12 months to promote Market Walk and Chorley Markets,18/05/2016,112095,447.00,Revenue,Buckshaw Leaflet Distribution,73050
Chorley Borough Council,http://statistics.data.gov.uk/id/local-authority/30UE,Service Management & Support,1009,NEW Customer & Digital,External Contractor,40198,Miscellaneous Expenses,5034,Carryout gully emptying and jetting works for Chorley Council at various sites around the borough,11/05/2016,112055,720.00,Revenue,C J Lyon,16579
Chorley Borough Council,http://statistics.data.gov.uk/id/local-authority/30UE,Service Management & Support,1009,NEW Customer & Digital,External Contractor,40198,Miscellaneous Expenses,5034,Carryout jetting works at various location for Chorley Council as requested,11/05/2016,112082,335.00,Revenue,C J Lyon,16579
Chorley Borough Council,http://statistics.data.gov.uk/id/local-authority/30UE,Service Management & Support,1009,NEW Customer & Digital,External Contractor,40198,Miscellaneous Expenses,5034,Carryout emptying of interceptor tank and clearing of gullies on a monthly basis at Bengal St Depot as requested,18/05/2016,112400,325.00,Revenue,C J Lyon,16579
Chorley Borough Council,http://statistics.data.gov.uk/id/local-authority/30UE,Service Management & Support,1009,NEW Customer & Digital,Vehicle Maintenance,30045,Direct Transport Costs,5016,Carryout works to replace flooring board on DK56JWO as required,11/05/2016,112128,376.52,Revenue,C P Davidson & Sons Ltd,21093
Chorley Borough Council,http://statistics.data.gov.uk/id/local-authority/30UE,Unapportionable Central OHeads,1009,NEW Customer & Digital,Emergency Call Out System,40096,Communication and Computing,5028,out of hours,27/05/2016,112603,440.52,Revenue,CallCare Ltd,20257
Chorley Borough Council,http://statistics.data.gov.uk/id/local-authority/30UE,Unapportionable Central OHeads,1009,NEW Customer & Digital,Emergency Call Out System,40096,Communication and Computing,5028,out of hours,27/05/2016,112605,507.48,Revenue,CallCare Ltd,20257
Chorley Borough Council,http://statistics.data.gov.uk/id/local-authority/30UE,Unapportionable Central OHeads,1009,NEW Customer & Digital,Emergency Call Out System,40096,Communication and Computing,5028,out of hours charges,27/05/2016,112713,602.44,Revenue,CallCare Ltd,20257
Chorley Borough Council,http://statistics.data.gov.uk/id/local-authority/30UE,Unapportionable Central OHeads,1009,NEW Policy & Governance,Refuse Collection,20037,Cleaning and Domestic Supplies,5012,All services provided by Cannon Hygiene at all Council sites for the period Apr 2016 to June 2016 Invoice number CN19209058,18/05/2016,112375,"1,316.85",Revenue,Cannon Hygiene Limited,18158
Chorley Borough Council,http://statistics.data.gov.uk/id/local-authority/30UE,Unapportionable Central OHeads,1009,NEW Business Development & Growth,General Repairs - Reactive,20004,Repairs Maintenance & Alts,5005,Blanket order for Reactive works for 2016.,04/05/2016,111897,390.00,Revenue,Castle mount Contracts Ltd,66621
Chorley Borough Council,http://statistics.data.gov.uk/id/local-authority/30UE,Corporate Management,1008,NEW Early Intervention,Taxi Testing & Vehicle Safety Report,40234,Services,5027,taxi test,18/05/2016,112425,94.05,Revenue,Chorley Autocare Ltd,17110
Chorley Borough Council,http://statistics.data.gov.uk/id/local-authority/30UE,Corporate Management,1008,NEW Early Intervention,Taxi Testing & Vehicle Safety Report,40234,Services,5027,MOT,18/05/2016,112425,603.35,Revenue,Chorley Autocare Ltd,17110
Chorley Borough Council,http://statistics.data.gov.uk/id/local-authority/30UE,Democratic Represent and  Mgnt,1007,NEW Policy & Governance,Grants To Other Organisations,40127,Grants and Subscriptions,5031,ccg,13/05/2016,112215,250.00,Revenue,Chorley District Scout Council,75534
Chorley Borough Council,http://statistics.data.gov.uk/id/local-authority/30UE,Democratic Represent and  Mgnt,1007,NEW Policy & Governance,Grants To Other Organisations,40127,Grants and Subscriptions,5031,ccg,13/05/2016,112216,250.00,Revenue,Chorley District Scout Council,75534
Chorley Borough Council,http://statistics.data.gov.uk/id/local-authority/30UE,Democratic Represent and  Mgnt,1007,NEW Policy & Governance,Grants To Other Organisations,40127,Grants and Subscriptions,5031,ccg,13/05/2016,112217,250.00,Revenue,Chorley District Scout Council,75534
Chorley Borough Council,http://statistics.data.gov.uk/id/local-authority/30UE,Service Management & Support,1009,NEW Customer & Digital,Vehicle Maintenance,30045,Direct Transport Costs,5016,Supply and fit new tyres on DK07LDE as required,11/05/2016,112059,356.00,Revenue,Chorley Tyres,53719
Chorley Borough Council,http://statistics.data.gov.uk/id/local-authority/30UE,Business Support,1095,NEW Business Development & Growth,Grants To Other Organisations,40127,Grants and Subscriptions,5031,Shop improvemtn grant,04/05/2016,111968,"2,508.92",Revenue,Chorley Vets,75543
Chorley Borough Council,http://statistics.data.gov.uk/id/local-authority/30UE,Business Support,1095,NEW Business Development & Growth,Grants To Other Organisations,40127,Grants and Subscriptions,5031,subsidy 1,25/05/2016,112625,536.87,Revenue,Chorley Vets,75543
Chorley Borough Council,http://statistics.data.gov.uk/id/local-authority/30UE,Community Development,1097,NEW Policy & Governance,Core Funding Grants,40133,Grants and Subscriptions,5031,Delivery of a service to support vulnerable adults (women) in Chorley - Year three 1st instalment,18/05/2016,112436,"7,497.75",Revenue,Chorley Womens Centre,17036
Chorley Borough Council,http://statistics.data.gov.uk/id/local-authority/30UE,Unapportionable Central OHeads,1009,NEW Policy & Governance,Consultants` Fees,40077,Services,5027,Lease Consultancy Fees from 1st April 2016 to 31st March 2017,20/05/2016,112540,500.00,Revenue,Chrystal Consulting,17613
Chorley Borough Council,http://statistics.data.gov.uk/id/local-authority/30UE,Business Support,1095,NEW Business Development & Growth,Miscellaneous Expenses,40200,Miscellaneous Expenses,5034,BREEAM pre-assessment work for Euxton Lane development,20/05/2016,112509,"1,500.00",Revenue,Clancy Consulting Ltd,69061
Chorley Borough Council,http://statistics.data.gov.uk/id/local-authority/30UE,Unapportionable Central OHeads,1009,NEW Business Development & Growth,General Repairs - Reactive,20004,Repairs Maintenance & Alts,5005,Blanket order for Reactive works for 2016.,04/05/2016,111954,363.75,Revenue,Classic Lifts Limited,20897
Chorley Borough Council,http://statistics.data.gov.uk/id/local-authority/30UE,Democratic Represent and  Mgnt,1007,NEW Policy & Governance,Grants To Other Organisations,40127,Grants and Subscriptions,5031,ccg,13/05/2016,112219,250.00,Revenue,Clayton Brook Community House,21310
Chorley Borough Council,http://statistics.data.gov.uk/id/local-authority/30UE,Service Management & Support,1009,NEW Customer & Digital,External Contractor,40198,Miscellaneous Expenses,5034,De-silting ADDRESS REDACTED as per quotation JE5675 16,11/05/2016,112078,"3,027.37",Revenue,Conservation Contracts North West,20520
Chorley Borough Council,http://statistics.data.gov.uk/id/local-authority/30UE,Unapportionable Central OHeads,1009,NEW Business Development & Growth,Planned Maintenance,20006,Repairs Maintenance & Alts,5005,Blanket order for PPM works for 2016.,04/05/2016,111785,493.20,Revenue,Corlett Electrical Eng Co Ltd,16271
Chorley Borough Council,http://statistics.data.gov.uk/id/local-authority/30UE,Unapportionable Central OHeads,1009,NEW Business Development & Growth,General Repairs - Reactive,20004,Repairs Maintenance & Alts,5005,Blanket order for Reactive works for 2016.,04/05/2016,111787,461.64,Revenue,Corlett Electrical Eng Co Ltd,16271
Chorley Borough Council,http://statistics.data.gov.uk/id/local-authority/30UE,Unapportionable Central OHeads,1009,NEW Business Development & Growth,Planned Maintenance,20006,Repairs Maintenance & Alts,5005,Blanket order for PPM works for 2016.,11/05/2016,112029,425.14,Revenue,Corlett Electrical Eng Co Ltd,16271
Chorley Borough Council,http://statistics.data.gov.uk/id/local-authority/30UE,Unapportionable Central OHeads,1009,NEW Business Development & Growth,Planned Maintenance,20006,Repairs Maintenance & Alts,5005,Blanket order for PPM works for 2016.,11/05/2016,112032,284.64,Revenue,Corlett Electrical Eng Co Ltd,16271
Chorley Borough Council,http://statistics.data.gov.uk/id/local-authority/30UE,Unapportionable Central OHeads,1009,NEW Business Development & Growth,Planned Maintenance,20006,Repairs Maintenance & Alts,5005,Blanket order for PPM works for 2016.,11/05/2016,112047,"1,018.79",Revenue,Corlett Electrical Eng Co Ltd,16271
Chorley Borough Council,http://statistics.data.gov.uk/id/local-authority/30UE,Unapportionable Central OHeads,1009,NEW Business Development & Growth,Planned Maintenance,20006,Repairs Maintenance & Alts,5005,Blanket order for PPM works for 2016.,11/05/2016,112048,250.28,Revenue,Corlett Electrical Eng Co Ltd,16271
Chorley Borough Council,http://statistics.data.gov.uk/id/local-authority/30UE,Collection Fund Revenue Accoun,,NEW Policy & Governance,NNDR Central Share,2034,Precepts & Collection Fund,Precept,central sahre,20/05/2016,112539,"1,309,490.00",Revenue,Department of Communities and Local Government,16280
Chorley Borough Council,http://statistics.data.gov.uk/id/local-authority/30UE,Collection Fund Revenue Accoun,,NEW Policy & Governance,NNDR Central Share,2034,Precepts & Collection Fund,Precept,surplus,20/05/2016,112539,"5,474.00",Revenue,Department of Communities and Local Government,16280
Chorley Borough Council,http://statistics.data.gov.uk/id/local-authority/30UE,Business Support,1095,NEW Business Development & Growth,Grants To Other Organisations,40127,Grants and Subscriptions,5031,shop front grant,18/05/2016,112415,"1,708.50",Revenue,NAME REDACTED of Ebb and Flo Bookshop,59017
Chorley Borough Council,http://statistics.data.gov.uk/id/local-authority/30UE,Economic Development,1096,NEW Business Development & Growth,Publicity - Advertising,40157,Miscellaneous Expenses,5034,COACH MONTHLY,11/05/2016,112285,300.00,Revenue,Diversified Business Communications UK,68712
Chorley Borough Council,http://statistics.data.gov.uk/id/local-authority/30UE,Business Support,1095,NEW Business Development & Growth,Miscellaneous Expenses,40200,Miscellaneous Expenses,5034,sib grant,11/05/2016,112224,250.00,Revenue,NAME REDACTED,75652
Chorley Borough Council,http://statistics.data.gov.uk/id/local-authority/30UE,Unapportionable Central OHeads,1009,NEW Business Development & Growth,General Repairs - Reactive,20004,Repairs Maintenance & Alts,5005,Blanket order for REACTIVE works.,04/05/2016,111708,360.50,Revenue,Drain Alert Ltd,16961
Chorley Borough Council,http://statistics.data.gov.uk/id/local-authority/30UE,Unapportionable Central OHeads,1009,NEW Policy & Governance,Postages,40082,Communication and Computing,5028,Renewal of membership of the DX Document Exchange,27/05/2016,112704,250.00,Revenue,DX Network Services Ltd,17551
Chorley Borough Council,http://statistics.data.gov.uk/id/local-authority/30UE,Democratic Represent and  Mgnt,1007,NEW Policy & Governance,Miscellaneous Expenses,40200,Miscellaneous Expenses,5034,Final invoice for shop stock sold as part of Axel Scheffler Exhibition 3/10/2015 - 20/12/2015 Sales 1772.83  minus Commission ,13/05/2016,112330,360.09,Revenue,Ebb and Flo Bookshop,67239
Chorley Borough Council,http://statistics.data.gov.uk/id/local-authority/30UE,Business Support,1095,NEW Business Development & Growth,Miscellaneous Expenses,40200,Miscellaneous Expenses,5034,To produce a comprehensive consultants report (to green book standards) on the digital office park that will fulfil,25/05/2016,112614,"7,875.00",Revenue,EKOSGEN,71520
Chorley Borough Council,http://statistics.data.gov.uk/id/local-authority/30UE,Business Support,1095,NEW Business Development & Growth,Miscellaneous Expenses,40200,Miscellaneous Expenses,5034,Preparation of the Digital Office Park ERDF full application,25/05/2016,112615,"2,730.00",Revenue,EKOSGEN,71520
Chorley Borough Council,http://statistics.data.gov.uk/id/local-authority/30UE,Unapportionable Central OHeads,1009,NEW Business Development & Growth,General Repairs - Reactive,20004,Repairs Maintenance & Alts,5005,Reactive BLANKET order for 2016.,27/05/2016,112467,348.10,Revenue,Ellesmere Engineering Co Ltd,17520
Chorley Borough Council,http://statistics.data.gov.uk/id/local-authority/30UE,Corporate Management,1008,NEW Customer & Digital,Miscellaneous Expenses,40200,Miscellaneous Expenses,5034,2 day LARAC conference and accommodation Nottingham 12 and 13 October 2016,20/05/2016,112488,259.00,Revenue,Environmental Media Group Ltd,70618
Chorley Borough Council,http://statistics.data.gov.uk/id/local-authority/30UE,Central Support Services,1009,NEW Customer & Digital,Computer Software-Maintenance,40107,Communication and Computing,5028,ArcGIS for Desktop Basic (Single Use) Primary Maintenance,20/05/2016,112485,318.75,Revenue,ESRI (UK) Ltd,19692
Chorley Borough Council,http://statistics.data.gov.uk/id/local-authority/30UE,Central Support Services,1009,NEW Customer & Digital,Computer Software-Maintenance,40107,Communication and Computing,5028,ArcGIS for Desktop Basic (Single Use) Secondary Maintenance,20/05/2016,112485,885.00,Revenue,ESRI (UK) Ltd,19692
Chorley Borough Council,http://statistics.data.gov.uk/id/local-authority/30UE,Central Support Services,1009,NEW Customer & Digital,Computer Software-Maintenance,40107,Communication and Computing,5028,ArcGIS for Desktop Standard (Concurrent Use) Primary Maintenance,20/05/2016,112485,"1,068.75",Revenue,ESRI (UK) Ltd,19692
Chorley Borough Council,http://statistics.data.gov.uk/id/local-authority/30UE,Central Support Services,1009,NEW Customer & Digital,Computer Software-Maintenance,40107,Communication and Computing,5028,ArcGIS for Server Enterprise Standard (up to 4 cores) Maintenance,20/05/2016,112485,"4,867.50",Revenue,ESRI (UK) Ltd,19692
Chorley Borough Council,http://statistics.data.gov.uk/id/local-authority/30UE,Central Support Services,1009,NEW Customer & Digital,Computer Software-Maintenance,40107,Communication and Computing,5028,"ArcGIS Online Organisation Plan Level 1 (5 Users; 2,500 Credits) Subscription Renewal",20/05/2016,112485,"1,900.00",Revenue,ESRI (UK) Ltd,19692
Chorley Borough Council,http://statistics.data.gov.uk/id/local-authority/30UE,Central Support Services,1009,NEW Customer & Digital,Computer Software-Maintenance,40107,Communication and Computing,5028,EDN Standard Annual Fee Subscription Renewal,20/05/2016,112485,746.25,Revenue,ESRI (UK) Ltd,19692
Chorley Borough Council,http://statistics.data.gov.uk/id/local-authority/30UE,Central Support Services,1009,NEW Customer & Digital,Computer Software-Maintenance,40107,Communication and Computing,5028,ProductivitySuite Government Site Maintenance,20/05/2016,112485,862.50,Revenue,ESRI (UK) Ltd,19692
Chorley Borough Council,http://statistics.data.gov.uk/id/local-authority/30UE,Central Support Services,1009,NEW Customer & Digital,Computer Software-Purchase,40100,Communication and Computing,5028,ArcGIS for Desktop Standard (Concurrent Use),25/05/2016,112571,"1,560.00",Revenue,ESRI (UK) Ltd,19692
Chorley Borough Council,http://statistics.data.gov.uk/id/local-authority/30UE,Central Support Services,1009,NEW Customer & Digital,Computer Software-Purchase,40100,Communication and Computing,5028,ArcGIS Network Analyst for Desktop (Concurrent Use),25/05/2016,112571,"1,440.00",Revenue,ESRI (UK) Ltd,19692
Chorley Borough Council,http://statistics.data.gov.uk/id/local-authority/30UE,Central Support Services,1009,NEW Customer & Digital,Computer Software-Maintenance,40107,Communication and Computing,5028,ArcGIS for Desktop Standard (Concurrent Use) Secondary Maintenance,25/05/2016,112571,"1,300.00",Revenue,ESRI (UK) Ltd,19692
Chorley Borough Council,http://statistics.data.gov.uk/id/local-authority/30UE,Central Support Services,1009,NEW Customer & Digital,Computer Software-Maintenance,40107,Communication and Computing,5028,ArcGIS Network Analyst for Desktop (Concurrent Use) Primary Maintenance,25/05/2016,112571,700.00,Revenue,ESRI (UK) Ltd,19692
Chorley Borough Council,http://statistics.data.gov.uk/id/local-authority/30UE,Business Support,1095,NEW Business Development & Growth,Miscellaneous Expenses,40200,Miscellaneous Expenses,5034,"Planning consultancy fee re: Digital Office Park, Euxton Lane",25/05/2016,112666,"1,942.14",Revenue,Euxton Lane Developments,75650
Chorley Borough Council,http://statistics.data.gov.uk/id/local-authority/30UE,Recognised Cap Grants & Conts,,NEW Business Development & Growth,Contributions Parish Councils,40144,Grants and Subscriptions,5031,CIL receipt,06/05/2016,111681,"49,185.33",Revenue,Euxton Parish Council,16838
Chorley Borough Council,http://statistics.data.gov.uk/id/local-authority/30UE,Democratic Represent and  Mgnt,1007,NEW Customer & Digital,Maintenance/Nature Reserves,20045,Grounds Maintenance Costs,5013,100nr Ulex Europaeus c2 1.85 and 50nr Jute Mulch Matts 60/60cm,11/05/2016,112133,315.00,Revenue,Everglades Nurseries Ltd,20202
Chorley Borough Council,http://statistics.data.gov.uk/id/local-authority/30UE,Democratic Represent and  Mgnt,1007,NEW Customer & Digital,Supplies-Grounds Maintenance,40025,"Equipment, Furniture & Materia",5023,"50nr 2L Holly, 100nr 60-90 Blackthorn, 100nr 60-90 hawthorn, 50nr 60-90 Cornus, 50nr 60-90 Hazel, 2nr Alnus glutinosa, 2 tree ",13/05/2016,112135,250.00,Revenue,Everglades Nurseries Ltd,20202
Chorley Borough Council,http://statistics.data.gov.uk/id/local-authority/30UE,Service Management & Support,1009,NEW Customer & Digital,Supplies-Grounds Maintenance,40025,"Equipment, Furniture & Materia",5023,20 Photinia Red Robin,25/05/2016,112630,560.00,Revenue,Everglades Nurseries Ltd,20202
Chorley Borough Council,http://statistics.data.gov.uk/id/local-authority/30UE,Democratic Represent and  Mgnt,1007,NEW Policy & Governance,Exhibitions,40176,Miscellaneous Expenses,5034,Hire of British Wildlife Photography Awards Exhibition from 17th September to 30th October 2016 - 2520 (incl. vat),11/05/2016,112076,"2,100.00",Revenue,Exhibitions on Tour Ltd,75428
Chorley Borough Council,http://statistics.data.gov.uk/id/local-authority/30UE,Service Management & Support,1009,NEW Customer & Digital,Hire Of Transport,30028,Contrct Hire & Operating Lease,5018,Hire of tractor and side arm flail at price quoted via the chest through until 31/03/2017  use this order number as from 01/04/2016,13/05/2016,111879,"1,565.29",Revenue,F R Sharrock Ltd,18091
Chorley Borough Council,http://statistics.data.gov.uk/id/local-authority/30UE,Service Management & Support,1009,NEW Customer & Digital,Tools & Equipment - Maintenance,40005,"Equipment, Furniture & Materia",5023,Supply items as on Pro-Forma invoice number 111655 as per Email from NAME REDACTED,11/05/2016,112062,674.64,Revenue,F R Sharrock Ltd,18091
Chorley Borough Council,http://statistics.data.gov.uk/id/local-authority/30UE,Democratic Represent and  Mgnt,1007,NEW Policy & Governance,Exhibitions & Special Events,40158,Miscellaneous Expenses,5034,Flowers to be provided for NAME REDACTED for use in Sacrifice Exhibition.,04/05/2016,111997,279.80,Revenue,Flowervision,71222
Chorley Borough Council,http://statistics.data.gov.uk/id/local-authority/30UE,Democratic Represent and  Mgnt,1007,NEW Customer & Digital,Playground Equipment,40008,"Equipment, Furniture & Materia",5023,1 - Half truck tyre with deck c/w suspension chains,25/05/2016,112578,668.75,Revenue,GB Sport & Leisure,21305
Chorley Borough Council,http://statistics.data.gov.uk/id/local-authority/30UE,Business Support,1095,NEW Chief Executive,Miscellaneous Expenses,40200,Miscellaneous Expenses,5034,Work done in respect of Digital Health Park,18/05/2016,112438,750.00,Revenue,Gilling Dod,72454
Chorley Borough Council,http://statistics.data.gov.uk/id/local-authority/30UE,Democratic Represent and  Mgnt,1007,NEW Policy & Governance,Lifelong Learning Activities,40194,Miscellaneous Expenses,5034,"Apron/Coif/neckerchief x2 = 100 Kitchen maids dress 350 Delivery 18",18/05/2016,112449,468.00,Revenue,NAME REDACTED,22525
Chorley Borough Council,http://statistics.data.gov.uk/id/local-authority/30UE,Building Control,1090,NEW Policy & Governance,HM Land Registry Fees,40174,Miscellaneous Expenses,5034,building control,20/05/2016,112538,24.00,Revenue,H M Land Registry,17567
Chorley Borough Council,http://statistics.data.gov.uk/id/local-authority/30UE,Housing Strategy,1069,NEW Policy & Governance,HM Land Registry Fees,40174,Miscellaneous Expenses,5034,housing needs,20/05/2016,112538,3.00,Revenue,H M Land Registry,17567
Chorley Borough Council,http://statistics.data.gov.uk/id/local-authority/30UE,Unapportionable Central OHeads,1009,NEW Policy & Governance,HM Land Registry Fees,40174,Miscellaneous Expenses,5034,liberata,20/05/2016,112538,188.00,Revenue,H M Land Registry,17567
Chorley Borough Council,http://statistics.data.gov.uk/id/local-authority/30UE,Unapportionable Central OHeads,1009,NEW Policy & Governance,HM Land Registry Fees,40174,Miscellaneous Expenses,5034,local tax,20/05/2016,112538,49.00,Revenue,H M Land Registry,17567
Chorley Borough Council,http://statistics.data.gov.uk/id/local-authority/30UE,Development Control,1091,NEW Policy & Governance,HM Land Registry Fees,40174,Miscellaneous Expenses,5034,planning,20/05/2016,112538,99.00,Revenue,H M Land Registry,17567
Chorley Borough Council,http://statistics.data.gov.uk/id/local-authority/30UE,Central Support Services,1009,NEW Policy & Governance,HM Land Registry Fees,40174,Miscellaneous Expenses,5034,people,20/05/2016,112538,12.00,Revenue,H M Land Registry,17567
Chorley Borough Council,http://statistics.data.gov.uk/id/local-authority/30UE,Elections,1012,NEW Policy & Governance,Computer Software-Maintenance,40107,Communication and Computing,5028,"Annual support & maintenance for EROS, LLP interface, VDF licence with connectivity and web eros",18/05/2016,112496,"9,115.82",Revenue,Halarose Limited,18133
Chorley Borough Council,http://statistics.data.gov.uk/id/local-authority/30UE,Service Management & Support,1009,NEW Customer & Digital,Publicity - Advertising,40157,Miscellaneous Expenses,5034,Supply and deliver 500 each of 4No Yarrrow Valley Walk leaflets (500 in total) folded to A5. All as previous order PRD 042771,11/05/2016,112269,293.00,Revenue,Haslam PrintersLtd,21777
Chorley Borough Council,http://statistics.data.gov.uk/id/local-authority/30UE,Development Control,1091,NEW Chief Executive,General Subscriptions,40146,Grants and Subscriptions,5031,DCP Online subscription 2016/2017,06/05/2016,111364,"1,490.00",Revenue,Haymarket Publishing Services Ltd,16347
Chorley Borough Council,http://statistics.data.gov.uk/id/local-authority/30UE,Unapportionable Central OHeads,1009,NEW Business Development & Growth,General Repairs - Reactive,20004,Repairs Maintenance & Alts,5005,Blanket order for REACTIVE works for 2016.,18/05/2016,112161,"1,012.00",Revenue,Henry Nightingale & Son,17923
Chorley Borough Council,http://statistics.data.gov.uk/id/local-authority/30UE,Unapportionable Central OHeads,1009,NEW Policy & Governance,Corp Training Organisational Development,17006,Indirect Employee Expenses,5002,Conducting Fair Investigations Course,11/05/2016,112268,"1,111.80",Revenue,Hyndburn Borough Council,17084
Chorley Borough Council,http://statistics.data.gov.uk/id/local-authority/30UE,Unapportionable Central OHeads,1009,NEW Policy & Governance,Corp Training Organisational Development,17006,Indirect Employee Expenses,5002,lunch,11/05/2016,112268,58.80,Revenue,Hyndburn Borough Council,17084
Chorley Borough Council,http://statistics.data.gov.uk/id/local-authority/30UE,Unapportionable Central OHeads,1009,NEW Policy & Governance,HR Approved Training Expenses,17001,Indirect Employee Expenses,5002,ILM Course - Further 4 places,25/05/2016,112572,"1,950.00",Revenue,Hyndburn Borough Council,17084
Chorley Borough Council,http://statistics.data.gov.uk/id/local-authority/30UE,Central Support Services,1009,NEW Customer & Digital,Computer Software-Maintenance,40107,Communication and Computing,5028,Uniform software and annual fee  5 year term,27/05/2016,111319,"22,500.00",Revenue,IDOX Software Limited,17542
Chorley Borough Council,http://statistics.data.gov.uk/id/local-authority/30UE,Community Development,1097,NEW Policy & Governance,Miscellaneous Expenses,40200,Miscellaneous Expenses,5034,"For the supply of GRANTfinder & Open4Community, 01 May 2016 to 30 April 2017",27/05/2016,112699,"5,298.50",Revenue,IDOX Software Limited,17542
Chorley Borough Council,http://statistics.data.gov.uk/id/local-authority/30UE,Control Accounts,Control,NEW Policy & Governance,Manual Control Account,1,Balance Sheet,Balance,Correction,11/05/2016,111359,"2,596.00",Revenue,Inland Revenue 065py00102078,17445
Chorley Borough Council,http://statistics.data.gov.uk/id/local-authority/30UE,Control Accounts,Control,NEW Policy & Governance,Manual Control Account,1,Balance Sheet,Balance,Balance Sheet,11/05/2016,112001,760.00,Revenue,Inland Revenue 065py00102078,17445
Chorley Borough Council,http://statistics.data.gov.uk/id/local-authority/30UE,Unapportionable Central OHeads,1009,NEW Policy & Governance,HR Approved Training Expenses,17001,Indirect Employee Expenses,5002,Interview skills training,11/05/2016,112084,664.50,Revenue,Instep UK Ltd,65300
Chorley Borough Council,http://statistics.data.gov.uk/id/local-authority/30UE,Business Support,1095,NEW Business Development & Growth,Cleaning/Attendants' Services,20041,Cleaning and Domestic Supplies,5012,To provide daily cleaning services to Market Walk Shopping Centre April 2016 - March 2017 @ 4310.21 per month,11/05/2016,112164,"3,877.68",Revenue,Interserve,70619
Chorley Borough Council,http://statistics.data.gov.uk/id/local-authority/30UE,Business Support,1095,NEW Business Development & Growth,Cleaning/Attendants' Services,20041,Cleaning and Domestic Supplies,5012,To provide daily cleaning services to Market Walk Shopping Centre April 2016 - March 2017 @ 4310.21 per month,25/05/2016,112580,"4,144.85",Revenue,Interserve,70619
Chorley Borough Council,http://statistics.data.gov.uk/id/local-authority/30UE,Business Support,1095,NEW Business Development & Growth,Refuse Collection,20037,Cleaning and Domestic Supplies,5012,To supply Waste Compactor services to MWSC HD260TR Serial No:  02601707021135 April 2016 - March 2017,25/05/2016,111978,270.00,Revenue,J&H Rentals Limited,70699
Chorley Borough Council,http://statistics.data.gov.uk/id/local-authority/30UE,Precepts and Collection Fund,Precept,NEW Customer & Digital,Bailiff Costs,2018,Precepts & Collection Fund,Precept,Precepts & Collection Fund,13/05/2016,112242,310.00,Revenue,Jacobs Certificated Bailiffs,22019
Chorley Borough Council,http://statistics.data.gov.uk/id/local-authority/30UE,Precepts and Collection Fund,Precept,NEW Customer & Digital,Bailiff Costs,2018,Precepts & Collection Fund,Precept,Precepts & Collection Fund,13/05/2016,112242,0.00,Revenue,Jacobs Certificated Bailiffs,22019
Chorley Borough Council,http://statistics.data.gov.uk/id/local-authority/30UE,Unapportionable Central OHeads,1009,NEW Business Development & Growth,General Repairs - Reactive,20004,Repairs Maintenance & Alts,5005,Blanket order for REACTIVE works for 2016.,18/05/2016,112271,287.87,Revenue,NAME REDACTED,20194
Chorley Borough Council,http://statistics.data.gov.uk/id/local-authority/30UE,Business Support,1095,NEW Business Development & Growth,Miscellaneous Expenses,40200,Miscellaneous Expenses,5034,Photography and video of Choose Chorley Business Evening Thursday 7th April 2016,11/05/2016,112083,350.00,Revenue,JBP Studios Limited,69388
Chorley Borough Council,http://statistics.data.gov.uk/id/local-authority/30UE,Service Management & Support,1009,NEW Customer & Digital,Transport Operating Leases,30029,Contrct Hire & Operating Lease,5018,Lease of DX55 CVG from 1/04/16 to 30/7/16,20/05/2016,112504,200.32,Revenue,Jcb Finance Ltd,17684
Chorley Borough Council,http://statistics.data.gov.uk/id/local-authority/30UE,Service Management & Support,1009,NEW Customer & Digital,Transport Operating Leases,30029,Contrct Hire & Operating Lease,5018,Lease of DK05 CXG from 1/04/16 to 30/7/16,20/05/2016,112504,295.23,Revenue,Jcb Finance Ltd,17684
Chorley Borough Council,http://statistics.data.gov.uk/id/local-authority/30UE,Service Management & Support,1009,NEW Customer & Digital,Transport Operating Leases,30029,Contrct Hire & Operating Lease,5018,Lease of DK55 EEF from 1/04/16 to 30/7/16,20/05/2016,112504,157.17,Revenue,Jcb Finance Ltd,17684
Chorley Borough Council,http://statistics.data.gov.uk/id/local-authority/30UE,Democratic Represent and  Mgnt,1007,NEW Customer & Digital,Supplies-Grounds Maintenance,40025,"Equipment, Furniture & Materia",5023,4 way topped grooved posts x 50 and birds mouth knee rail with straps as per quotation. Delivery to Bengal Street,11/05/2016,112116,"1,045.00",Revenue,John H Mayor & Sons Ltd,16635
Chorley Borough Council,http://statistics.data.gov.uk/id/local-authority/30UE,Corporate Management,1008,NEW Policy & Governance,Publicity - Advertising,40157,Miscellaneous Expenses,5034,Half page advert for Mother`s Day in Market Walk,11/05/2016,112063,326.21,Revenue,Johnston Publishing Ltd,20072
Chorley Borough Council,http://statistics.data.gov.uk/id/local-authority/30UE,Planning Policy,1092,NEW Policy & Governance,Sale Of Property - Advertising,40162,Miscellaneous Expenses,5034,Legal notice in the Chorley Guardian for sale of POS at land to the rear of ADDRESS REDACTED and land off ADDRESS REDAC,13/05/2016,112064,373.56,Revenue,Johnston Publishing Ltd,20072
Chorley Borough Council,http://statistics.data.gov.uk/id/local-authority/30UE,Planning Policy,1092,NEW Policy & Governance,Sale Of Property - Advertising,40162,Miscellaneous Expenses,5034,legal notice,18/05/2016,112074,373.56,Revenue,Johnston Publishing Ltd,20072
Chorley Borough Council,http://statistics.data.gov.uk/id/local-authority/30UE,Corporate Management,1008,NEW Customer & Digital,Other Contributions,40145,Grants and Subscriptions,5031,ADDRESS REDACTED,13/05/2016,112293,816.00,Revenue,NAME REDACTED,73750
Chorley Borough Council,http://statistics.data.gov.uk/id/local-authority/30UE,Unapportionable Central OHeads,1009,NEW Policy & Governance,Legal Fees,40171,Miscellaneous Expenses,5034,Charges re Settlement Agreement,13/05/2016,112302,350.00,Revenue,Kevills Solicitors,18532
Chorley Borough Council,http://statistics.data.gov.uk/id/local-authority/30UE,Corporate Management,1008,NEW Customer & Digital,Other Contributions,40145,Grants and Subscriptions,5031,ADDRESS REDACTED,27/05/2016,112739,276.10,Revenue,NAME REDACTED,74777
Chorley Borough Council,http://statistics.data.gov.uk/id/local-authority/30UE,Homelessness,1075,NEW Early Intervention,External Contractor,40198,Miscellaneous Expenses,5034,Provision of Housing Drop-In,18/05/2016,112448,"3,750.00",Revenue,Key,61252
Chorley Borough Council,http://statistics.data.gov.uk/id/local-authority/30UE,Control Accounts,Control,NEW Policy & Governance,General Balances,100,Balance Sheet,Balance,sal deds may 16,20/05/2016,112523,"1,166.85",Revenue,Labour Councillors Association,17577
Chorley Borough Council,http://statistics.data.gov.uk/id/local-authority/30UE,Unapportionable Central OHeads,1009,NEW Policy & Governance,Pensions Increase Act Payments,18005,Indirect Employee Expenses,5002,pension recharge,20/05/2016,112480,"18,211.45",Revenue,Lancashire County Council,18386
Chorley Borough Council,http://statistics.data.gov.uk/id/local-authority/30UE,Corporate Management,1008,NEW Policy & Governance,Other Fees,40212,Miscellaneous Expenses,5034,Subsidy for the provision of a meals on wheels service in Chorley up to 17 April 2016,06/05/2016,112017,856.16,Revenue,Lancashire Fayre,62967
Chorley Borough Council,http://statistics.data.gov.uk/id/local-authority/30UE,Corporate Management,1008,NEW Customer & Digital,Clinical Waste Collection,50007,Private Contractors,5042,Disposal of Clinical waste from Chorley Households. April 2015 to March 2016 yellow bag collections approx 550 per month..,18/05/2016,112165,"1,116.06",Revenue,Lancashire Teaching Hospitals NHS FT,19003
Chorley Borough Council,http://statistics.data.gov.uk/id/local-authority/30UE,Unapportionable Central OHeads,1009,NEW Policy & Governance,Service Fees,40056,Services,5027,Occupational Health Fees for March 2016,25/05/2016,112466,431.00,Revenue,Lancashire Teaching Hospitals NHS FT,19003
Chorley Borough Council,http://statistics.data.gov.uk/id/local-authority/30UE,Central Support Services,1009,NEW Early Intervention,Miscellaneous Expenses,40200,Miscellaneous Expenses,5034,Restoration work at Hoghton War Memorial as agreed with NAME REDACTED Contact NAME REDACTED,25/05/2016,109999,"8,480.00",Revenue,Landscape Engineering Ltd,54727
Chorley Borough Council,http://statistics.data.gov.uk/id/local-authority/30UE,Central Support Services,1009,NEW Policy & Governance,Car Leasing Payment,14100,Direct Employee Expenses,5001,Mercedes Benz Vehicle: A Class A180d Sport Premium Plus Body Type: Hatchback Colour: Jupiter Red Fuel type: Diese,18/05/2016,111734,"2,759.73",Revenue,LeasePlan UK Ltd T/A Automotive Leasing,65197
Chorley Borough Council,http://statistics.data.gov.uk/id/local-authority/30UE,Central Support Services,1009,NEW Policy & Governance,Car Leasing Payment,14100,Direct Employee Expenses,5001,Car Leasing Payment,18/05/2016,111734,239.98,Revenue,LeasePlan UK Ltd T/A Automotive Leasing,65197
Chorley Borough Council,http://statistics.data.gov.uk/id/local-authority/30UE,Control Accounts,Control,NEW Policy & Governance,Manual Control Account,1,Balance Sheet,Balance,Balance Sheet,18/05/2016,111734,-239.98,Revenue,LeasePlan UK Ltd T/A Automotive Leasing,65197
Chorley Borough Council,http://statistics.data.gov.uk/id/local-authority/30UE,Central Support Services,1009,NEW Policy & Governance,Car Leasing Payment,14100,Direct Employee Expenses,5001,NAME REDACTED,18/05/2016,111745,"2,255.91",Revenue,LeasePlan UK Ltd T/A Automotive Leasing,65197
Chorley Borough Council,http://statistics.data.gov.uk/id/local-authority/30UE,Central Support Services,1009,NEW Policy & Governance,Car Leasing Payment,14100,Direct Employee Expenses,5001,Car Leasing Payment,18/05/2016,111745,212.10,Revenue,LeasePlan UK Ltd T/A Automotive Leasing,65197
Chorley Borough Council,http://statistics.data.gov.uk/id/local-authority/30UE,Control Accounts,Control,NEW Policy & Governance,Manual Control Account,1,Balance Sheet,Balance,Balance Sheet,18/05/2016,111745,-212.10,Revenue,LeasePlan UK Ltd T/A Automotive Leasing,65197
Chorley Borough Council,http://statistics.data.gov.uk/id/local-authority/30UE,Central Support Services,1009,NEW Policy & Governance,Car Leasing Payment,14100,Direct Employee Expenses,5001,"Renault Kadjar 1.5 dci Dymanique S Nav Fuel - Diesel  Transmission - Auto Annual Mileage - 2,000 Lease period-3 Years Driver",18/05/2016,112426,"2,862.68",Revenue,LeasePlan UK Ltd T/A Automotive Leasing,65197
Chorley Borough Council,http://statistics.data.gov.uk/id/local-authority/30UE,Central Support Services,1009,NEW Policy & Governance,Car Leasing Payment,14100,Direct Employee Expenses,5001,Car Leasing Payment,18/05/2016,112426,250.87,Revenue,LeasePlan UK Ltd T/A Automotive Leasing,65197
Chorley Borough Council,http://statistics.data.gov.uk/id/local-authority/30UE,Central Support Services,1009,NEW Policy & Governance,Car Leasing Payment,14100,Direct Employee Expenses,5001,Renault Kadjar 1.5 dCi 110 Signature Nav 5dr Titanium - Metallic (Colour code KPN) Hatchback Driver:NAME REDACTED Lease,18/05/2016,112427,"2,903.11",Revenue,LeasePlan UK Ltd T/A Automotive Leasing,65197
Chorley Borough Council,http://statistics.data.gov.uk/id/local-authority/30UE,Central Support Services,1009,NEW Policy & Governance,Car Leasing Payment,14100,Direct Employee Expenses,5001,Renault Kadjar Body type: Hatchback Colour: Diamond Black Fuel: Diesel CO2 band: C Lease Period: 3 years Driver:NAME RED,18/05/2016,112428,"2,859.08",Revenue,LeasePlan UK Ltd T/A Automotive Leasing,65197
Chorley Borough Council,http://statistics.data.gov.uk/id/local-authority/30UE,Central Support Services,1009,NEW Policy & Governance,Car Leasing Payment,14100,Direct Employee Expenses,5001,Car Leasing Payment,18/05/2016,112428,257.75,Revenue,LeasePlan UK Ltd T/A Automotive Leasing,65197
Chorley Borough Council,http://statistics.data.gov.uk/id/local-authority/30UE,Control Accounts,Control,NEW Policy & Governance,Manual Control Account,1,Balance Sheet,Balance,Car Leasing Payment,18/05/2016,112428,-257.75,Revenue,LeasePlan UK Ltd T/A Automotive Leasing,65197
Chorley Borough Council,http://statistics.data.gov.uk/id/local-authority/30UE,Business Support,1095,NEW Business Development & Growth,Miscellaneous Expenses,40200,Miscellaneous Expenses,5034,big grant,18/05/2016,112416,"3,000.00",Revenue,Little Explorers,61781
Chorley Borough Council,http://statistics.data.gov.uk/id/local-authority/30UE,Business Support,1095,NEW Business Development & Growth,Miscellaneous Expenses,40200,Miscellaneous Expenses,5034,"Exhibition stand- Choose Chorley For Bus 4x2 metres IFB 2016 Liverpool; dates: 13, 15, 21 & 27th June; 15-16 (21st 14-15)",25/05/2016,112607,"2,160.00",Revenue,Liverpool Vision Limited,74969
Chorley Borough Council,http://statistics.data.gov.uk/id/local-authority/30UE,Economic Development,1096,NEW Business Development & Growth,Promotional Expenses,40159,Miscellaneous Expenses,5034,Google Street view Virtual Tour,06/05/2016,112022,600.00,Revenue,Local Exposure Ltd,75429
Chorley Borough Council,http://statistics.data.gov.uk/id/local-authority/30UE,Business Support,1095,NEW Business Development & Growth,Promotional Expenses,40159,Miscellaneous Expenses,5034,Google Street View - Virtual Tour - Market Walk,06/05/2016,112023,450.00,Revenue,Local Exposure Ltd,75429
Chorley Borough Council,http://statistics.data.gov.uk/id/local-authority/30UE,Corporate Management,1008,NEW Customer & Digital,Other Contributions,40145,Grants and Subscriptions,5031,ADDRESS REDACTED,27/05/2016,112737,"5,000.00",Revenue,NAME REDACTED,73998
Chorley Borough Council,http://statistics.data.gov.uk/id/local-authority/30UE,Elections,1012,NEW Policy & Governance,Stationery,40050,"Printing, Stationery & General",5026,Tactile devices for use in Polling stations for EU Referendum on 23 June 2016,25/05/2016,112667,360.00,Revenue,M- Four Manchester City Council,21878
Chorley Borough Council,http://statistics.data.gov.uk/id/local-authority/30UE,Capital,Capital,NEW Early Intervention,Grants,3002,Capital Expenditure,Capital,ADDRESS REDACTED,27/05/2016,112621,"3,170.00",Capital,M.J Park Building Contractors,20367
Chorley Borough Council,http://statistics.data.gov.uk/id/local-authority/30UE,Corporate Management,1008,NEW Policy & Governance,Home Loss Payment,40139,Grants and Subscriptions,5031,NAME REDACTED,18/05/2016,112417,500.00,Revenue,NAME REDACTED,75748
Chorley Borough Council,http://statistics.data.gov.uk/id/local-authority/30UE,Unapportionable Central OHeads,1009,NEW Policy & Governance,Agency Staff,13000,Direct Employee Expenses,5001,NAME REDACTED,13/05/2016,112312,431.40,Revenue,Matrix SCM Ltd,22128
Chorley Borough Council,http://statistics.data.gov.uk/id/local-authority/30UE,Unapportionable Central OHeads,1009,NEW Policy & Governance,Agency Staff,13000,Direct Employee Expenses,5001,NAME REDACTED,13/05/2016,112312,578.84,Revenue,Matrix SCM Ltd,22128
Chorley Borough Council,http://statistics.data.gov.uk/id/local-authority/30UE,Unapportionable Central OHeads,1009,NEW Policy & Governance,Agency Staff,13000,Direct Employee Expenses,5001,NAME REDACTED,13/05/2016,112313,33.03,Revenue,Matrix SCM Ltd,22128
Chorley Borough Council,http://statistics.data.gov.uk/id/local-authority/30UE,Unapportionable Central OHeads,1009,NEW Policy & Governance,Agency Staff,13000,Direct Employee Expenses,5001,NAME REDACTED,13/05/2016,112313,431.40,Revenue,Matrix SCM Ltd,22128
Chorley Borough Council,http://statistics.data.gov.uk/id/local-authority/30UE,Unapportionable Central OHeads,1009,NEW Policy & Governance,Agency Staff,13000,Direct Employee Expenses,5001,NAME REDACTED,13/05/2016,112313,723.55,Revenue,Matrix SCM Ltd,22128
Chorley Borough Council,http://statistics.data.gov.uk/id/local-authority/30UE,Unapportionable Central OHeads,1009,NEW Policy & Governance,Agency Staff,13000,Direct Employee Expenses,5001,NAME REDACTED,20/05/2016,112537,776.52,Revenue,Matrix SCM Ltd,22128
Chorley Borough Council,http://statistics.data.gov.uk/id/local-authority/30UE,Unapportionable Central OHeads,1009,NEW Policy & Governance,Agency Staff,13000,Direct Employee Expenses,5001,NAME REDACTED,20/05/2016,112537,"1,302.39",Revenue,Matrix SCM Ltd,22128
Chorley Borough Council,http://statistics.data.gov.uk/id/local-authority/30UE,Elections,1012,NEW Policy & Governance,Rent/Hire Of Premises,20017,Premises Rents,5007,Hire of room for polling station 23 June 2016,13/05/2016,112264,352.00,Revenue,Mawdesley Village Hall,18423
Chorley Borough Council,http://statistics.data.gov.uk/id/local-authority/30UE,Elections,1012,NEW Policy & Governance,Rent/Hire Of Premises,20017,Premises Rents,5007,Hire of room for elections on 5 May 2016,13/05/2016,112265,352.00,Revenue,Mawdesley Village Hall,18423
Chorley Borough Council,http://statistics.data.gov.uk/id/local-authority/30UE,Service Management & Support,1009,NEW Customer & Digital,Supplies-Grounds Maintenance,40025,"Equipment, Furniture & Materia",5023,20 ton of ultitrec to be delivered to Yarrow Valley Park.,11/05/2016,112060,387.30,Revenue,Mc & Ma Stewart (Haulage Ltd),16627
Chorley Borough Council,http://statistics.data.gov.uk/id/local-authority/30UE,Democratic Represent and  Mgnt,1007,NEW Customer & Digital,Supplies-Grounds Maintenance,40025,"Equipment, Furniture & Materia",5023,20 ton of Ultitrec delivered to Abbey village end of Withnell nature reserve,11/05/2016,112061,385.73,Revenue,Mc & Ma Stewart (Haulage Ltd),16627
Chorley Borough Council,http://statistics.data.gov.uk/id/local-authority/30UE,Service Management & Support,1009,NEW Customer & Digital,Supplies-Grounds Maintenance,40025,"Equipment, Furniture & Materia",5023,"Please supply street name plates to Chorley Council Specification, as per quote provided by NAME REDACTED in e-mail dated",18/05/2016,112383,296.85,Revenue,Midland Signs (Leicester) Ltd,16606
Chorley Borough Council,http://statistics.data.gov.uk/id/local-authority/30UE,Private Sector HSG Renewal,1073,NEW Early Intervention,External Contractor,40198,Miscellaneous Expenses,5034,ADDRESS REDACTED,11/05/2016,112180,250.00,Revenue,Mobility Care Services,70841
Chorley Borough Council,http://statistics.data.gov.uk/id/local-authority/30UE,Private Sector HSG Renewal,1073,NEW Early Intervention,External Contractor,40198,Miscellaneous Expenses,5034,ADDRESS REDACTED,11/05/2016,112183,250.00,Revenue,Mobility Care Services,70841
Chorley Borough Council,http://statistics.data.gov.uk/id/local-authority/30UE,Private Sector HSG Renewal,1073,NEW Early Intervention,External Contractor,40198,Miscellaneous Expenses,5034,ADDRESS REDACTED,11/05/2016,112192,825.00,Revenue,Mobility Care Services,70841
Chorley Borough Council,http://statistics.data.gov.uk/id/local-authority/30UE,Private Sector HSG Renewal,1073,NEW Early Intervention,External Contractor,40198,Miscellaneous Expenses,5034,ADDRESS REDACTED,11/05/2016,112194,250.00,Revenue,Mobility Care Services,70841
Chorley Borough Council,http://statistics.data.gov.uk/id/local-authority/30UE,Private Sector HSG Renewal,1073,NEW Early Intervention,External Contractor,40198,Miscellaneous Expenses,5034,ADDRESS REDACTED,11/05/2016,112196,250.00,Revenue,Mobility Care Services,70841
Chorley Borough Council,http://statistics.data.gov.uk/id/local-authority/30UE,Private Sector HSG Renewal,1073,NEW Early Intervention,External Contractor,40198,Miscellaneous Expenses,5034,ADDRESS REDACTED,11/05/2016,112199,250.00,Revenue,Mobility Care Services,70841
Chorley Borough Council,http://statistics.data.gov.uk/id/local-authority/30UE,Central Support Services,1009,NEW Customer & Digital,Computer Software-Maintenance,40107,Communication and Computing,5028,Annual fee for system maintenance and support 01/04/16 to 31/03/17,06/05/2016,111738,"7,010.00",Revenue,Modern Mindset LTD,51367
Chorley Borough Council,http://statistics.data.gov.uk/id/local-authority/30UE,Central Support Services,1009,NEW Customer & Digital,Computer Software-Maintenance,40107,Communication and Computing,5028,Restricted mobile application 01/04/16 to 31/03/17,06/05/2016,111738,"3,000.00",Revenue,Modern Mindset LTD,51367
Chorley Borough Council,http://statistics.data.gov.uk/id/local-authority/30UE,Corporate Management,1008,NEW Customer & Digital,Other Contributions,40145,Grants and Subscriptions,5031,ADDRESS REDACTED,27/05/2016,112738,756.00,Revenue,NAME REDACTED,74800
Chorley Borough Council,http://statistics.data.gov.uk/id/local-authority/30UE,Development Control,1091,NEW Customer & Digital,Refunds,40220,Miscellaneous Expenses,5034,Over payment on app fee,18/05/2016,111773,305.00,Revenue,NAME REDACTED,75436
Chorley Borough Council,http://statistics.data.gov.uk/id/local-authority/30UE,Corporate Management,1008,NEW Customer & Digital,Other Contributions,40145,Grants and Subscriptions,5031,ADDRESS REDACTED,13/05/2016,112290,780.52,Revenue,NAME REDACTED,73857
Chorley Borough Council,http://statistics.data.gov.uk/id/local-authority/30UE,Capital,Capital,NEW Customer & Digital,Other Capital Related Fees,3024,Capital Expenditure,Capital,Design services in respect of the furnishing of the glasshouse Astley Park,18/05/2016,112099,"1,000.00",Capital,NAME REDACTED,75516
Chorley Borough Council,http://statistics.data.gov.uk/id/local-authority/30UE,Business Support,1095,NEW Business Development & Growth,Grants To Other Organisations,40127,Grants and Subscriptions,5031,grant,25/05/2016,112524,"4,012.50",Revenue,N Round and V Round,75759
Chorley Borough Council,http://statistics.data.gov.uk/id/local-authority/30UE,Central Support Services,1009,NEW Early Intervention,Miscellaneous Expenses,40200,Miscellaneous Expenses,5034,"CPIA & Evidence Gathering - NAME REDACTED, NAME REDACTED and NAME REDACTED Powers of Entry - NAME",11/05/2016,112075,"1,015.00",Revenue,NAME REDACTED,17911
Chorley Borough Council,http://statistics.data.gov.uk/id/local-authority/30UE,Central Support Services,1009,NEW Early Intervention,Training Course Fees,17010,Indirect Employee Expenses,5002,"5 places (3 paid places, 2 free places) at 145.00 per paid place for CPIA & EVIDENCE GATHERING COURSE on 11th May",18/05/2016,112342,435.00,Revenue,NAME REDACTED,17911
Chorley Borough Council,http://statistics.data.gov.uk/id/local-authority/30UE,Unapportionable Central OHeads,1009,NEW Chief Executive,Postages,40082,Communication and Computing,5028,Quarterly Rental on 1NFS330 Franking Machine Serial Number NE8002360/DA1243567448 and 1 2kg scales April 206 - March,13/05/2016,112382,631.50,Revenue,Nationwide Capital Finance Ltd,21739
Chorley Borough Council,http://statistics.data.gov.uk/id/local-authority/30UE,Business Support,1095,NEW Business Development & Growth,Miscellaneous Expenses,40200,Miscellaneous Expenses,5034,BIG grant,18/05/2016,112481,"4,000.00",Revenue,Nature Trail Nursery Ltd,75666
Chorley Borough Council,http://statistics.data.gov.uk/id/local-authority/30UE,Service Management & Support,1009,NEW Customer & Digital,Refuse Collection,20037,Cleaning and Domestic Supplies,5012,Exchange of street cleaning waste skip 20 yard skip and 35yard skip  at price quoted removed from Bengal St depot ,04/05/2016,109901,"2,174.07",Revenue,Neales Waste Management,17583
Chorley Borough Council,http://statistics.data.gov.uk/id/local-authority/30UE,Service Management & Support,1009,NEW Customer & Digital,Refuse Collection,20037,Cleaning and Domestic Supplies,5012,Exchange of green waste 30 yard skip at price quoted removed from Bengal St depot Please use this order from 24/04/2015,04/05/2016,109901,350.00,Revenue,Neales Waste Management,17583
Chorley Borough Council,http://statistics.data.gov.uk/id/local-authority/30UE,Service Management & Support,1009,NEW Customer & Digital,Refuse Collection,20037,Cleaning and Domestic Supplies,5012,Tonnage of green waste 35yard skip at price quoted removed from Bengal St depot Please use this order from 24/04/2015 ,04/05/2016,109901,"1,246.70",Revenue,Neales Waste Management,17583
Chorley Borough Council,http://statistics.data.gov.uk/id/local-authority/30UE,Central Support Services,1009,NEW Early Intervention,Miscellaneous Expenses,40200,Miscellaneous Expenses,5034,Supply 35 yard skip with exchanges as required to Delamere Place Chorley East on Saturday 9th April - deliver for 8.30 am ,18/05/2016,112320,960.46,Revenue,Neales Waste Management,17583
Chorley Borough Council,http://statistics.data.gov.uk/id/local-authority/30UE,Business Support,1095,NEW Customer & Digital,Refuse Collection,20037,Cleaning and Domestic Supplies,5012,last years charges,18/05/2016,112352,480.26,Revenue,Neales Waste Management,17583
Chorley Borough Council,http://statistics.data.gov.uk/id/local-authority/30UE,Business Support,1095,NEW Business Development & Growth,Refuse Collection,20037,Cleaning and Domestic Supplies,5012,Market Walk YARD 1 - General Waste compacted - 35 Cubic Yard Roll On / Roll Off Skip from Compactor,25/05/2016,112353,200.00,Revenue,Neales Waste Management,17583
Chorley Borough Council,http://statistics.data.gov.uk/id/local-authority/30UE,Business Support,1095,NEW Business Development & Growth,Refuse Collection,20037,Cleaning and Domestic Supplies,5012,Market Walk YARD 1 - General Waste Compacted Disposal Costs per tonne (variable depended on weight collected),25/05/2016,112353,"1,345.05",Revenue,Neales Waste Management,17583
Chorley Borough Council,http://statistics.data.gov.uk/id/local-authority/30UE,Business Support,1095,NEW Business Development & Growth,Refuse Collection,20037,Cleaning and Domestic Supplies,5012,Market Walk YARD 1 - Cardboard and plastic film 35 Cubic yard Ro Ro skip,25/05/2016,112353,106.64,Revenue,Neales Waste Management,17583
Chorley Borough Council,http://statistics.data.gov.uk/id/local-authority/30UE,Business Support,1095,NEW Business Development & Growth,Refuse Collection,20037,Cleaning and Domestic Supplies,5012,Market Walk YARD 3 - cardboard and plastic film - 35 cubic yard Ro Ro skip,25/05/2016,112357,250.00,Revenue,Neales Waste Management,17583
Chorley Borough Council,http://statistics.data.gov.uk/id/local-authority/30UE,Business Support,1095,NEW Business Development & Growth,Refuse Collection,20037,Cleaning and Domestic Supplies,5012,Market Walk YARD 3 - general waste - x2  8 cubic yard FEL skip Lift Costs,25/05/2016,112357,330.00,Revenue,Neales Waste Management,17583
Chorley Borough Council,http://statistics.data.gov.uk/id/local-authority/30UE,Unapportionable Central OHeads,1009,NEW Chief Executive,Postages,40082,Communication and Computing,5028,Credit for Franking Machine at Town Hall Offices,13/05/2016,111864,"1,000.00",Revenue,Neopost Ltd RCB Credifon A/C,20009
Chorley Borough Council,http://statistics.data.gov.uk/id/local-authority/30UE,Central Support Services,1009,NEW Customer & Digital,Computer Software-Maintenance,40107,Communication and Computing,5028,Year 4 of 250 x SecurEnvoy SecurAccess 1yr Subs 250-499 Users (part code SE-ACCESS-1YR-250R) To include 250 x Secur,06/05/2016,111916,"1,800.00",Revenue,Network Technology Solutions (UK) Ltd,58851
Chorley Borough Council,http://statistics.data.gov.uk/id/local-authority/30UE,Capital,Capital,NEW Customer & Digital,Main Contractor,3007,Capital Expenditure,Capital,Design and Build of Astley Park Destination Play Area in accordance with signed JCT Design and Build Contracts,25/05/2016,112608,"7,139.93",Capital,Newground CIC,22064
Chorley Borough Council,http://statistics.data.gov.uk/id/local-authority/30UE,Housing Strategy,1069,NEW Early Intervention,General Subscriptions,40146,Grants and Subscriptions,5031,Full Membership to Northern Housing Consortium (April 2016/31 March 2017),11/05/2016,112024,885.00,Revenue,Northern Housing Consortium Ltd,17220
Chorley Borough Council,http://statistics.data.gov.uk/id/local-authority/30UE,Service Management & Support,1009,NEW Customer & Digital,Vehicle Maintenance,30045,Direct Transport Costs,5016,Supply poly/wire brushes fro Swingo 250 to be delivered to Bengal St depot,18/05/2016,112441,316.05,Revenue,Northern Municipal Spares Ltd,17752
Chorley Borough Council,http://statistics.data.gov.uk/id/local-authority/30UE,Service Management & Support,1009,NEW Customer & Digital,Vehicle Maintenance,30045,Direct Transport Costs,5016,Supply Poly sweeping brushes for Swingo 250 to be delivered to Bengal St depot,18/05/2016,112441,214.35,Revenue,Northern Municipal Spares Ltd,17752
Chorley Borough Council,http://statistics.data.gov.uk/id/local-authority/30UE,Service Management & Support,1009,NEW Customer & Digital,Hire Of Transport,30028,Contrct Hire & Operating Lease,5018,Hire of Ford Transit 3.5 tonne crewcab tipper reg NL12OFG for 25 week period as per quote,18/05/2016,112012,492.86,Revenue,Northgate Vehicle Hire (NW) Ltd,17360
Chorley Borough Council,http://statistics.data.gov.uk/id/local-authority/30UE,Service Management & Support,1009,NEW Customer & Digital,Hire Of Transport,30028,Contrct Hire & Operating Lease,5018,Hire of Ford Transit 3.5 tonne crewcab tipper reg NL12ONR for 25 week period as per quote,18/05/2016,112012,492.86,Revenue,Northgate Vehicle Hire (NW) Ltd,17360
Chorley Borough Council,http://statistics.data.gov.uk/id/local-authority/30UE,Service Management & Support,1009,NEW Customer & Digital,Hire Of Transport,30028,Contrct Hire & Operating Lease,5018,Hire of Ford Transit 3.5 tonne crewcab tipper reg NK13YPT for 25 week period as per quote,18/05/2016,112012,492.86,Revenue,Northgate Vehicle Hire (NW) Ltd,17360
Chorley Borough Council,http://statistics.data.gov.uk/id/local-authority/30UE,Service Management & Support,1009,NEW Customer & Digital,Hire Of Transport,30028,Contrct Hire & Operating Lease,5018,Hire of Ford Transit 3.5 tonne tipper reg FE65BRF for 25 week period as per quote,18/05/2016,112012,394.29,Revenue,Northgate Vehicle Hire (NW) Ltd,17360
Chorley Borough Council,http://statistics.data.gov.uk/id/local-authority/30UE,Service Management & Support,1009,NEW Customer & Digital,Hire Of Transport,30028,Contrct Hire & Operating Lease,5018,Hire of Ford Transit 3.5 tonne tipper reg WN65MWW for 25 week period as per quote,18/05/2016,112012,394.29,Revenue,Northgate Vehicle Hire (NW) Ltd,17360
Chorley Borough Council,http://statistics.data.gov.uk/id/local-authority/30UE,Service Management & Support,1009,NEW Customer & Digital,Hire Of Transport,30028,Contrct Hire & Operating Lease,5018,Hire of Ford Transit 3.5 tonne tipper reg WN65MHO for 25 week period as per quote,18/05/2016,112012,394.29,Revenue,Northgate Vehicle Hire (NW) Ltd,17360
Chorley Borough Council,http://statistics.data.gov.uk/id/local-authority/30UE,Service Management & Support,1009,NEW Customer & Digital,Hire Of Transport,30028,Contrct Hire & Operating Lease,5018,Hire of Ford Transit 3.5 tonne tipper reg WN65UBO for 25 week period as per quote,18/05/2016,112012,394.29,Revenue,Northgate Vehicle Hire (NW) Ltd,17360
Chorley Borough Council,http://statistics.data.gov.uk/id/local-authority/30UE,Service Management & Support,1009,NEW Customer & Digital,Hire Of Transport,30028,Contrct Hire & Operating Lease,5018,Hire of Ford Transit 3.5 tonne tipper reg WU65KZZfor 25 week period as per quote,18/05/2016,112012,394.29,Revenue,Northgate Vehicle Hire (NW) Ltd,17360
Chorley Borough Council,http://statistics.data.gov.uk/id/local-authority/30UE,Service Management & Support,1009,NEW Customer & Digital,Hire Of Transport,30028,Contrct Hire & Operating Lease,5018,Hire of Ford Transit 3.5 tonne tipper reg ND63YEG for 25 week period as per quote,18/05/2016,112012,394.29,Revenue,Northgate Vehicle Hire (NW) Ltd,17360
Chorley Borough Council,http://statistics.data.gov.uk/id/local-authority/30UE,Service Management & Support,1009,NEW Customer & Digital,Hire Of Transport,30028,Contrct Hire & Operating Lease,5018,NJ64JVA,18/05/2016,112012,9.89,Revenue,Northgate Vehicle Hire (NW) Ltd,17360
Chorley Borough Council,http://statistics.data.gov.uk/id/local-authority/30UE,Democratic Represent and  Mgnt,1007,NEW Business Development & Growth,Electricity,20013,Energy Costs,5006,Energy Costs,11/05/2016,111560,312.32,Revenue,Npower Commercial Gas,16814
Chorley Borough Council,http://statistics.data.gov.uk/id/local-authority/30UE,Democratic Represent and  Mgnt,1007,NEW Business Development & Growth,Electricity,20013,Energy Costs,5006,Energy Costs,11/05/2016,111560,132.65,Revenue,Npower Commercial Gas,16814
Chorley Borough Council,http://statistics.data.gov.uk/id/local-authority/30UE,Democratic Represent and  Mgnt,1007,NEW Business Development & Growth,Electricity,20013,Energy Costs,5006,Energy Costs,11/05/2016,111560,9.34,Revenue,Npower Commercial Gas,16814
Chorley Borough Council,http://statistics.data.gov.uk/id/local-authority/30UE,Service Management & Support,1009,NEW Business Development & Growth,Electricity,20013,Energy Costs,5006,Energy Costs,11/05/2016,111560,59.88,Revenue,Npower Commercial Gas,16814
Chorley Borough Council,http://statistics.data.gov.uk/id/local-authority/30UE,Democratic Represent and  Mgnt,1007,NEW Business Development & Growth,Electricity,20013,Energy Costs,5006,Energy Costs,11/05/2016,111560,9.28,Revenue,Npower Commercial Gas,16814
Chorley Borough Council,http://statistics.data.gov.uk/id/local-authority/30UE,Economic Development,1096,NEW Business Development & Growth,Electricity,20013,Energy Costs,5006,Energy Costs,11/05/2016,111560,"3,928.65",Revenue,Npower Commercial Gas,16814
Chorley Borough Council,http://statistics.data.gov.uk/id/local-authority/30UE,Democratic Represent and  Mgnt,1007,NEW Business Development & Growth,Electricity,20013,Energy Costs,5006,Energy Costs,11/05/2016,111560,169.60,Revenue,Npower Commercial Gas,16814
Chorley Borough Council,http://statistics.data.gov.uk/id/local-authority/30UE,Democratic Represent and  Mgnt,1007,NEW Business Development & Growth,Electricity,20013,Energy Costs,5006,Energy Costs,11/05/2016,111560,56.15,Revenue,Npower Commercial Gas,16814
Chorley Borough Council,http://statistics.data.gov.uk/id/local-authority/30UE,Democratic Represent and  Mgnt,1007,NEW Business Development & Growth,Electricity,20013,Energy Costs,5006,Energy Costs,11/05/2016,111560,382.82,Revenue,Npower Commercial Gas,16814
Chorley Borough Council,http://statistics.data.gov.uk/id/local-authority/30UE,Community Development,1097,NEW Business Development & Growth,Electricity,20013,Energy Costs,5006,Energy Costs,11/05/2016,111560,500.87,Revenue,Npower Commercial Gas,16814
Chorley Borough Council,http://statistics.data.gov.uk/id/local-authority/30UE,Community Development,1097,NEW Business Development & Growth,Electricity,20013,Energy Costs,5006,Energy Costs,11/05/2016,111560,36.34,Revenue,Npower Commercial Gas,16814
Chorley Borough Council,http://statistics.data.gov.uk/id/local-authority/30UE,Community Development,1097,NEW Business Development & Growth,Electricity,20013,Energy Costs,5006,Energy Costs,11/05/2016,111560,289.82,Revenue,Npower Commercial Gas,16814
Chorley Borough Council,http://statistics.data.gov.uk/id/local-authority/30UE,Democratic Represent and  Mgnt,1007,NEW Business Development & Growth,Electricity,20013,Energy Costs,5006,Energy Costs,11/05/2016,111560,31.02,Revenue,Npower Commercial Gas,16814
Chorley Borough Council,http://statistics.data.gov.uk/id/local-authority/30UE,Democratic Represent and  Mgnt,1007,NEW Business Development & Growth,Electricity,20013,Energy Costs,5006,Energy Costs,11/05/2016,111560,356.12,Revenue,Npower Commercial Gas,16814
Chorley Borough Council,http://statistics.data.gov.uk/id/local-authority/30UE,Democratic Represent and  Mgnt,1007,NEW Business Development & Growth,Electricity,20013,Energy Costs,5006,Energy Costs,11/05/2016,111560,882.59,Revenue,Npower Commercial Gas,16814
Chorley Borough Council,http://statistics.data.gov.uk/id/local-authority/30UE,Democratic Represent and  Mgnt,1007,NEW Business Development & Growth,Electricity,20013,Energy Costs,5006,Energy Costs,11/05/2016,111560,198.20,Revenue,Npower Commercial Gas,16814
Chorley Borough Council,http://statistics.data.gov.uk/id/local-authority/30UE,Corporate Management,1008,NEW Business Development & Growth,Electricity,20013,Energy Costs,5006,Energy Costs,11/05/2016,111560,8.96,Revenue,Npower Commercial Gas,16814
Chorley Borough Council,http://statistics.data.gov.uk/id/local-authority/30UE,Corporate Management,1008,NEW Business Development & Growth,Electricity,20013,Energy Costs,5006,Energy Costs,11/05/2016,111560,4.56,Revenue,Npower Commercial Gas,16814
Chorley Borough Council,http://statistics.data.gov.uk/id/local-authority/30UE,Corporate Management,1008,NEW Business Development & Growth,Electricity,20013,Energy Costs,5006,Energy Costs,11/05/2016,111560,406.93,Revenue,Npower Commercial Gas,16814
Chorley Borough Council,http://statistics.data.gov.uk/id/local-authority/30UE,Democratic Represent and  Mgnt,1007,NEW Business Development & Growth,Electricity,20013,Energy Costs,5006,Energy Costs,11/05/2016,111560,467.96,Revenue,Npower Commercial Gas,16814
Chorley Borough Council,http://statistics.data.gov.uk/id/local-authority/30UE,Economic Development,1096,NEW Business Development & Growth,Electricity,20013,Energy Costs,5006,Energy Costs,11/05/2016,111560,190.06,Revenue,Npower Commercial Gas,16814
Chorley Borough Council,http://statistics.data.gov.uk/id/local-authority/30UE,Democratic Represent and  Mgnt,1007,NEW Business Development & Growth,Electricity,20013,Energy Costs,5006,Energy Costs,11/05/2016,111560,53.54,Revenue,Npower Commercial Gas,16814
Chorley Borough Council,http://statistics.data.gov.uk/id/local-authority/30UE,Unapportionable Central OHeads,1009,NEW Business Development & Growth,Electricity,20013,Energy Costs,5006,Energy Costs,11/05/2016,111560,"3,219.94",Revenue,Npower Commercial Gas,16814
Chorley Borough Council,http://statistics.data.gov.uk/id/local-authority/30UE,Unapportionable Central OHeads,1009,NEW Business Development & Growth,Electricity,20013,Energy Costs,5006,Energy Costs,11/05/2016,111560,793.98,Revenue,Npower Commercial Gas,16814
Chorley Borough Council,http://statistics.data.gov.uk/id/local-authority/30UE,Unapportionable Central OHeads,1009,NEW Business Development & Growth,Electricity,20013,Energy Costs,5006,Energy Costs,11/05/2016,111560,"2,215.08",Revenue,Npower Commercial Gas,16814
Chorley Borough Council,http://statistics.data.gov.uk/id/local-authority/30UE,Economic Development,1096,NEW Business Development & Growth,Electricity,20013,Energy Costs,5006,Energy Costs,11/05/2016,111560,8.96,Revenue,Npower Commercial Gas,16814
Chorley Borough Council,http://statistics.data.gov.uk/id/local-authority/30UE,Homelessness,1075,NEW Business Development & Growth,Electricity,20013,Energy Costs,5006,Energy Costs,11/05/2016,111560,"1,149.60",Revenue,Npower Commercial Gas,16814
Chorley Borough Council,http://statistics.data.gov.uk/id/local-authority/30UE,Homelessness,1075,NEW Business Development & Growth,Electricity,20013,Energy Costs,5006,Energy Costs,11/05/2016,111560,100.16,Revenue,Npower Commercial Gas,16814
Chorley Borough Council,http://statistics.data.gov.uk/id/local-authority/30UE,Homelessness,1075,NEW Business Development & Growth,Electricity,20013,Energy Costs,5006,Energy Costs,11/05/2016,111560,138.93,Revenue,Npower Commercial Gas,16814
Chorley Borough Council,http://statistics.data.gov.uk/id/local-authority/30UE,Business Support,1095,NEW Business Development & Growth,Electricity,20013,Energy Costs,5006,Energy Costs,11/05/2016,111560,"1,817.09",Revenue,Npower Commercial Gas,16814
Chorley Borough Council,http://statistics.data.gov.uk/id/local-authority/30UE,Democratic Represent and  Mgnt,1007,NEW Business Development & Growth,Electricity,20013,Energy Costs,5006,Energy Costs,11/05/2016,111560,60.55,Revenue,Npower Commercial Gas,16814
Chorley Borough Council,http://statistics.data.gov.uk/id/local-authority/30UE,Business Support,1095,NEW Business Development & Growth,Electricity,20013,Energy Costs,5006,Energy Costs,11/05/2016,111560,64.04,Revenue,Npower Commercial Gas,16814
Chorley Borough Council,http://statistics.data.gov.uk/id/local-authority/30UE,Democratic Represent and  Mgnt,1007,NEW Business Development & Growth,Electricity,20013,Energy Costs,5006,Energy Costs,11/05/2016,111560,49.74,Revenue,Npower Commercial Gas,16814
Chorley Borough Council,http://statistics.data.gov.uk/id/local-authority/30UE,Parking Services,1066,NEW Business Development & Growth,External Contractors,50008,Private Contractors,5042,"Provision of off street car park enforcement, cash collection, cash counting facilities and third party bulk cash collections April 16",06/05/2016,112021,"4,135.76",Revenue,NSL Limited,67253
Chorley Borough Council,http://statistics.data.gov.uk/id/local-authority/30UE,Democratic Represent and  Mgnt,1007,NEW Customer & Digital,Supplies-Grounds Maintenance,40025,"Equipment, Furniture & Materia",5023,2 x 6ft long half round log planters,04/05/2016,111981,440.00,Revenue,Nuchoice Limited,75454
Chorley Borough Council,http://statistics.data.gov.uk/id/local-authority/30UE,Unapportionable Central OHeads,1009,NEW Policy & Governance,Leadership Development Programme,17008,Indirect Employee Expenses,5002,Coaching for CB for Interview,11/05/2016,112136,250.00,Revenue,Nwlaeo,17571
Chorley Borough Council,http://statistics.data.gov.uk/id/local-authority/30UE,Unapportionable Central OHeads,1009,NEW Policy & Governance,Professional Fees,40063,Services,5027,Epaycheck,18/05/2016,112468,600.00,Revenue,Nwlaeo,17571
Chorley Borough Council,http://statistics.data.gov.uk/id/local-authority/30UE,Unapportionable Central OHeads,1009,NEW Customer & Digital,Stationery,40050,"Printing, Stationery & General",5026,"162x235mm WHITE WINDOW PRINTED GUMMED MAILING WALLET ENVELOPES PRINTED WITH DNR 2 x delivery of 10,000",18/05/2016,112380,491.60,Revenue,Opal Envelopes Ltd,19356
Chorley Borough Council,http://statistics.data.gov.uk/id/local-authority/30UE,Central Support Services,1009,NEW Customer & Digital,Computer Software-Maintenance,40107,Communication and Computing,5028,FULL USE - Oracle Database Standard Edition One - Processor Perpetual 1/4/2016 - 31/3/2017,25/05/2016,112632,"1,370.38",Revenue,Oracle Corporation UK Ltd,61786
Chorley Borough Council,http://statistics.data.gov.uk/id/local-authority/30UE,Corporate Management,1008,NEW Customer & Digital,Other Contributions,40145,Grants and Subscriptions,5031,ADDRESS REDACTED,13/05/2016,112292,"1,373.95",Revenue,NAME REDACTED,73866
Chorley Borough Council,http://statistics.data.gov.uk/id/local-authority/30UE,Corporate Management,1008,NEW Customer & Digital,Other Contributions,40145,Grants and Subscriptions,5031,ADDRESS REDACTED,27/05/2016,112736,875.00,Revenue,NAME REDACTED,73866
Chorley Borough Council,http://statistics.data.gov.uk/id/local-authority/30UE,Service Management & Support,1009,NEW Customer & Digital,Supplies-Grounds Maintenance,40025,"Equipment, Furniture & Materia",5023,"72 Red Begonias, 72 Yelloe Begonias, 48 Boston Ferns, 24 Peace Lilys",25/05/2016,112634,624.20,Revenue,Peter H Smith Limited,17088
Chorley Borough Council,http://statistics.data.gov.uk/id/local-authority/30UE,Central Support Services,1009,NEW Early Intervention,External Contractor,40198,Miscellaneous Expenses,5034,Pest control duties for 2016/17,18/05/2016,112266,340.00,Revenue,NAME REDACTED,16727
Chorley Borough Council,http://statistics.data.gov.uk/id/local-authority/30UE,Central Support Services,1009,NEW Early Intervention,External Contractor,40198,Miscellaneous Expenses,5034,Pest control duties for 2016/17,18/05/2016,112267,255.00,Revenue,NAME REDACTED,16727
Chorley Borough Council,http://statistics.data.gov.uk/id/local-authority/30UE,Service Management & Support,1009,NEW Customer & Digital,Diesel/Derv,30007,Direct Transport Costs,5016,Supply 4000 litres of road diesel delivered to Bengal St depot at price quoted,11/05/2016,112089,"3,840.00",Revenue,Pilkington Oils,18075
Chorley Borough Council,http://statistics.data.gov.uk/id/local-authority/30UE,Service Management & Support,1009,NEW Customer & Digital,Diesel/Derv,30007,Direct Transport Costs,5016,Supply gas oil delivered to Bengal St depot at price quoted,13/05/2016,112100,"1,160.00",Revenue,Pilkington Oils,18075
Chorley Borough Council,http://statistics.data.gov.uk/id/local-authority/30UE,Unapportionable Central OHeads,1009,NEW Policy & Governance,Service Fees,40056,Services,5027,7 Staff Mission Plaques,18/05/2016,112323,802.68,Revenue,Poppy Signs Ltd,21898
Chorley Borough Council,http://statistics.data.gov.uk/id/local-authority/30UE,Central Support Services,1009,NEW Policy & Governance,Miscellaneous Expenses,40200,Miscellaneous Expenses,5034,"Sponsor Banners, Podium Backdrop Panels and Gantry Banner",20/05/2016,112486,"2,507.84",Revenue,Poppy Signs Ltd,21898
Chorley Borough Council,http://statistics.data.gov.uk/id/local-authority/30UE,Elections,1012,NEW Policy & Governance,Rent/Hire Of Premises,20017,Premises Rents,5007,"As per quote 220128171 Hire of SL082 Portakabin with 2 tables and 2 chairs, Chemical toilet, delivery  3rd May and collection ",13/05/2016,112156,"1,277.00",Revenue,Portakabin Limited,51521
Chorley Borough Council,http://statistics.data.gov.uk/id/local-authority/30UE,Unapportionable Central OHeads,1009,NEW Policy & Governance,HR Approved Training Expenses,17001,Indirect Employee Expenses,5002,Performance Appraisal Training,20/05/2016,112563,990.00,Revenue,Potential Unearthed,22243
Chorley Borough Council,http://statistics.data.gov.uk/id/local-authority/30UE,Unapportionable Central OHeads,1009,NEW Chief Executive,Stationery,40050,"Printing, Stationery & General",5026,"Evolution Everyday A4 80gsm, Box 2500",11/05/2016,112139,454.00,Revenue,Premier Paper Group,54451
Chorley Borough Council,http://statistics.data.gov.uk/id/local-authority/30UE,Unapportionable Central OHeads,1009,NEW Policy & Governance,Refreshments,40036,Catering,5024,Quarterly sanitisation and supply of water coolers and bottled water for all Council locations April 2016,20/05/2016,112515,330.60,Revenue,Pressure Coolers Ltd T/A Maestro International Ltd,19767
Chorley Borough Council,http://statistics.data.gov.uk/id/local-authority/30UE,Private Sector HSG Renewal,1073,NEW Early Intervention,Miscellaneous Expenses,40200,Miscellaneous Expenses,5034,Provision of Heating System Maintenance checks (funded by LCC Affordable Warmth Grant 2015/16),04/05/2016,111994,"1,200.00",Revenue,Preston Care and Repair,50018
Chorley Borough Council,http://statistics.data.gov.uk/id/local-authority/30UE,Private Sector HSG Renewal,1073,NEW Early Intervention,Miscellaneous Expenses,40200,Miscellaneous Expenses,5034,"Provision of Warmer Homes Checks and Heating System Maintenance, both funded by LCC Affordable Warmth Fund.",27/05/2016,112680,"1,498.17",Revenue,Preston Care and Repair,50018
Chorley Borough Council,http://statistics.data.gov.uk/id/local-authority/30UE,Elections,1012,NEW Policy & Governance,Postages,40082,Communication and Computing,5028,Poll card potage for EU Referendum (95%),04/05/2016,111993,"20,658.70",Revenue,Print Image Facilities LLP,57870
Chorley Borough Council,http://statistics.data.gov.uk/id/local-authority/30UE,Elections,1012,NEW Policy & Governance,Postages,40082,Communication and Computing,5028,balance of postage for EU Referendum Poll cards,18/05/2016,112384,746.57,Revenue,Print Image Facilities LLP,57870
Chorley Borough Council,http://statistics.data.gov.uk/id/local-authority/30UE,Elections,1012,NEW Policy & Governance,Printing,40043,"Printing, Stationery & General",5026,Postal Ballot Packs for Borough/PCC Elections 5 May 2016. - as per schedule SG03/060510,25/05/2016,112575,"20,218.56",Revenue,Print Image Network,21171
Chorley Borough Council,http://statistics.data.gov.uk/id/local-authority/30UE,Elections,1012,NEW Policy & Governance,Printing,40043,"Printing, Stationery & General",5026,PCC Ballot books,25/05/2016,112576,"5,100.00",Revenue,Print Image Network,21171
Chorley Borough Council,http://statistics.data.gov.uk/id/local-authority/30UE,Elections,1012,NEW Policy & Governance,Printing,40043,"Printing, Stationery & General",5026,borough ballot books,25/05/2016,112577,"7,400.00",Revenue,Print Image Network,21171
Chorley Borough Council,http://statistics.data.gov.uk/id/local-authority/30UE,Homelessness,1075,NEW Early Intervention,External Contractors,50008,Private Contractors,5042,"Control Centre Monitoring, Homeless Service 01.04.16 - 31.03.17",11/05/2016,112019,"3,821.48",Revenue,Progress Housing Group,64340
Chorley Borough Council,http://statistics.data.gov.uk/id/local-authority/30UE,Central Support Services,1009,NEW Customer & Digital,Computer Software-Maintenance,40107,Communication and Computing,5028,"License, maintenance & support for DFG software to 31st March 2017 (with license & support for the provision of friendly forms ",25/05/2016,112652,705.55,Revenue,Qtech Applications Ltd,17271
Chorley Borough Council,http://statistics.data.gov.uk/id/local-authority/30UE,Business Support,1095,NEW Business Development & Growth,Grants To Other Organisations,40127,Grants and Subscriptions,5031,Grants and Subscriptions,18/05/2016,112483,"5,000.00",Revenue,Regan and Hallworth Ltd,74972
Chorley Borough Council,http://statistics.data.gov.uk/id/local-authority/30UE,Business Support,1095,NEW Business Development & Growth,Grants To Other Organisations,40127,Grants and Subscriptions,5031,Grants and Subscriptions,18/05/2016,112483,"2,564.62",Revenue,Regan and Hallworth Ltd,74972
Chorley Borough Council,http://statistics.data.gov.uk/id/local-authority/30UE,Control Accounts,Control,NEW Policy & Governance,General Balances,100,Balance Sheet,Balance,childcare vouchers,20/05/2016,112303,"5,500.93",Revenue,Reward Gateway (UK) Ltd,66814
Chorley Borough Council,http://statistics.data.gov.uk/id/local-authority/30UE,Non Domestic Rates Redistribut,,NEW Policy & Governance,Tariff to Business Rates Pool,49002,Expenditure not in NCOS,,Lancs Business Rate Pool,20/05/2016,112565,"707,099.00",Revenue,Ribble Valley Borough Council,21100
Chorley Borough Council,http://statistics.data.gov.uk/id/local-authority/30UE,Corporate Management,1008,NEW Policy & Governance,Home Loss Payment,40139,Grants and Subscriptions,5031,NAME REDACTED,18/05/2016,112418,500.00,Revenue,NAME REDACTED,75749
Chorley Borough Council,http://statistics.data.gov.uk/id/local-authority/30UE,Central Support Services,1009,NEW Customer & Digital,Computer Software-Maintenance,40107,Communication and Computing,5028,Software Adobe Reader Extension Server ALL ALP Platinum Maintenance & Support Renewa (AES: 58044443F2-CBC4) Adobe,06/05/2016,111723,"2,949.00",Revenue,ROCC Computers Ltd,20307
Chorley Borough Council,http://statistics.data.gov.uk/id/local-authority/30UE,Development Control,1091,NEW Early Intervention,General Subscriptions,40146,Grants and Subscriptions,5031,RCIS Subscription Renewal: BCIS Online: (public/construction/misc) BCIS Review Online,18/05/2016,112394,"3,975.00",Revenue,Royal Institute of Chartered Surveyors,70239
Chorley Borough Council,http://statistics.data.gov.uk/id/local-authority/30UE,Planning Policy,1092,NEW Policy & Governance,General Subscriptions,40146,Grants and Subscriptions,5031,BCIS Online Subscription & BCIS Review Online 12 months commencing June 2016,20/05/2016,112516,"3,975.00",Revenue,Royal Institute of Chartered Surveyors,70239
Chorley Borough Council,http://statistics.data.gov.uk/id/local-authority/30UE,Capital,Capital,NEW Customer & Digital,Main Contractor,3007,Capital Expenditure,Capital,"Quote ref: 1602179.  Installation of resin bound rubber mulch to springy, toddler unit, slide, monkey bars and balance beam ",18/05/2016,111870,"4,738.00",Capital,RTC Safety Surfaces Ltd,21613
Chorley Borough Council,http://statistics.data.gov.uk/id/local-authority/30UE,Development Control,1091,NEW Chief Executive,Training Course Fees,17010,Indirect Employee Expenses,5002,"RTPI Season Tickets , ADDRESS REDACTEDMulti Buy Code 3277/NW/QXBXT48NAQ Expiry Date: 4/11/2016",06/05/2016,111456,800.00,Revenue,RTPI North West,16769
Chorley Borough Council,http://statistics.data.gov.uk/id/local-authority/30UE,Precepts and Collection Fund,Precept,NEW Customer & Digital,Bailiff Costs,2018,Precepts & Collection Fund,Precept,Precepts & Collection Fund,13/05/2016,112316,"4,690.00",Revenue,Rundles,17803
Chorley Borough Council,http://statistics.data.gov.uk/id/local-authority/30UE,Corporate Management,1008,NEW Policy & Governance,Home Loss Payment,40139,Grants and Subscriptions,5031,ADDRESS REDACTED,11/05/2016,112223,500.00,Revenue,NAME REDACTED,75660
Chorley Borough Council,http://statistics.data.gov.uk/id/local-authority/30UE,Business Support,1095,NEW Business Development & Growth,Electricity,20013,Energy Costs,5006,Energy Costs,18/05/2016,112309,323.57,Revenue,Scottish Hydro Electric,64087
Chorley Borough Council,http://statistics.data.gov.uk/id/local-authority/30UE,Homelessness,1075,NEW Early Intervention,External Contractor,40198,Miscellaneous Expenses,5034,For Concierge Service at ADDRESS REDACTED This is for the period April 2016 to March 2017 inclusive.,27/05/2016,112489,"2,272.40",Revenue,Sector Security Services,19269
Chorley Borough Council,http://statistics.data.gov.uk/id/local-authority/30UE,Elections,1012,NEW Policy & Governance,Stationery,40050,"Printing, Stationery & General",5026,Presiding Officer Sundries packs for EU Referendum,18/05/2016,112392,"1,102.50",Revenue,Shaw & Sons Ltd,18092
Chorley Borough Council,http://statistics.data.gov.uk/id/local-authority/30UE,Service Management & Support,1009,NEW Customer & Digital,Grounds Maintenance Contractor,20043,Grounds Maintenance Costs,5013,Repair footpath next to Gough Lane play area Dig out roots and fill with 6mm topping,18/05/2016,112440,"1,280.00",Revenue,Shiloh Surfacing,61457
Chorley Borough Council,http://statistics.data.gov.uk/id/local-authority/30UE,Service Management & Support,1009,NEW Customer & Digital,Protective Clothing,40040,"Clothing, Uniforms and Laundry",5025,High Vis Yellow Waterproof Trousers.  Product Code = CSR33.  Size = Medium,11/05/2016,112142,121.50,Revenue,Smart Image Workwear,21064
Chorley Borough Council,http://statistics.data.gov.uk/id/local-authority/30UE,Service Management & Support,1009,NEW Customer & Digital,Protective Clothing,40040,"Clothing, Uniforms and Laundry",5025,High Vis Yellow Waterproof Trousers.  Product Code = CSR33.  Size = Large,11/05/2016,112142,60.75,Revenue,Smart Image Workwear,21064
Chorley Borough Council,http://statistics.data.gov.uk/id/local-authority/30UE,Service Management & Support,1009,NEW Customer & Digital,Protective Clothing,40040,"Clothing, Uniforms and Laundry",5025,High Vis Yellow Waterproof Trousers.  Product Code = CSR33.  Size = X Large,11/05/2016,112142,60.75,Revenue,Smart Image Workwear,21064
Chorley Borough Council,http://statistics.data.gov.uk/id/local-authority/30UE,Service Management & Support,1009,NEW Customer & Digital,Protective Clothing,40040,"Clothing, Uniforms and Laundry",5025,Uneek UC122 Polo Shirt.  Red c/w Chorley Council Logo all white embroidered on front left breast.  Product Code = CSR34.,11/05/2016,112142,82.00,Revenue,Smart Image Workwear,21064
Chorley Borough Council,http://statistics.data.gov.uk/id/local-authority/30UE,Service Management & Support,1009,NEW Customer & Digital,Protective Clothing,40040,"Clothing, Uniforms and Laundry",5025,"ORN Hawk Cargo Trousers.  Product Code = CSR38.  Size = 32 Waist, Regular leg.",11/05/2016,112142,64.50,Revenue,Smart Image Workwear,21064
Chorley Borough Council,http://statistics.data.gov.uk/id/local-authority/30UE,Service Management & Support,1009,NEW Customer & Digital,Protective Clothing,40040,"Clothing, Uniforms and Laundry",5025,"ORN Hawk Cargo Trousers.  Product Code = CSR38.  Size = 34 Waist, Regular leg.",11/05/2016,112142,64.50,Revenue,Smart Image Workwear,21064
Chorley Borough Council,http://statistics.data.gov.uk/id/local-authority/30UE,Central Support Services,1009,NEW Customer & Digital,Computer Software-Maintenance,40107,Communication and Computing,5028,Year 2 of 3 - Microsoft ESA agreement including additional server licenses.,11/05/2016,112127,"29,342.20",Revenue,Softcat Ltd,69996
Chorley Borough Council,http://statistics.data.gov.uk/id/local-authority/30UE,Homelessness,1075,NEW Early Intervention,Other Contributions,40145,Grants and Subscriptions,5031,Sanctuary Scheme April 2016 - March 2017,18/05/2016,111983,"7,823.99",Revenue,South Ribble Borough Council,17889
Chorley Borough Council,http://statistics.data.gov.uk/id/local-authority/30UE,Central Support Services,1009,NEW Customer & Digital,Computer Equipment-Maintenance,40105,Communication and Computing,5028,Renewal of contract 22408,06/05/2016,111752,"19,980.00",Revenue,Starcom Technologies Limited,20541
Chorley Borough Council,http://statistics.data.gov.uk/id/local-authority/30UE,Community Development,1097,NEW Policy & Governance,Core Funding Grants,40133,Grants and Subscriptions,5031,Delivery of a community safety support service in Chorley - Year three 1st instalment,18/05/2016,112476,"4,000.00",Revenue,Street Pastors,21946
Chorley Borough Council,http://statistics.data.gov.uk/id/local-authority/30UE,Unapportionable Central OHeads,1009,NEW Business Development & Growth,General Repairs - Reactive,20004,Repairs Maintenance & Alts,5005,Blanket order for REACTIVE works for 2016.,04/05/2016,111832,485.50,Revenue,Stringfellow Bldg Cntrctrs Ltd,17893
Chorley Borough Council,http://statistics.data.gov.uk/id/local-authority/30UE,Unapportionable Central OHeads,1009,NEW Business Development & Growth,General Repairs - Reactive,20004,Repairs Maintenance & Alts,5005,Blanket order for REACTIVE works for 2016.,04/05/2016,111834,521.50,Revenue,Stringfellow Bldg Cntrctrs Ltd,17893
Chorley Borough Council,http://statistics.data.gov.uk/id/local-authority/30UE,Unapportionable Central OHeads,1009,NEW Business Development & Growth,General Repairs - Reactive,20004,Repairs Maintenance & Alts,5005,Blanket order for REACTIVE works for 2016.,04/05/2016,111838,"1,162.63",Revenue,Stringfellow Bldg Cntrctrs Ltd,17893
Chorley Borough Council,http://statistics.data.gov.uk/id/local-authority/30UE,Business Support,1095,NEW Business Development & Growth,General Repairs - Reactive,20004,Repairs Maintenance & Alts,5005,To carry out brickwork repairs to ADDRESS REDACTED as per quote CC55 dated 15/1/16.,04/05/2016,111842,"4,750.00",Revenue,Stringfellow Bldg Cntrctrs Ltd,17893
Chorley Borough Council,http://statistics.data.gov.uk/id/local-authority/30UE,Unapportionable Central OHeads,1009,NEW Business Development & Growth,Planned Maintenance,20006,Repairs Maintenance & Alts,5005,To renew existing door and window in powder coated steel at ADDRESS REDACTED as per quote CC56 dated 15/1/16.,04/05/2016,111842,"2,500.00",Revenue,Stringfellow Bldg Cntrctrs Ltd,17893
Chorley Borough Council,http://statistics.data.gov.uk/id/local-authority/30UE,Unapportionable Central OHeads,1009,NEW Business Development & Growth,General Repairs - Reactive,20004,Repairs Maintenance & Alts,5005,Blanket order for REACTIVE works for 2016.,04/05/2016,111859,334.36,Revenue,Stringfellow Bldg Cntrctrs Ltd,17893
Chorley Borough Council,http://statistics.data.gov.uk/id/local-authority/30UE,Unapportionable Central OHeads,1009,NEW Business Development & Growth,General Repairs - Reactive,20004,Repairs Maintenance & Alts,5005,Blanket order for REACTIVE works for 2016.,04/05/2016,111860,"1,335.41",Revenue,Stringfellow Bldg Cntrctrs Ltd,17893
Chorley Borough Council,http://statistics.data.gov.uk/id/local-authority/30UE,Unapportionable Central OHeads,1009,NEW Business Development & Growth,General Repairs - Reactive,20004,Repairs Maintenance & Alts,5005,Blanket order for REACTIVE works for 2016.,04/05/2016,111936,291.48,Revenue,Stringfellow Bldg Cntrctrs Ltd,17893
Chorley Borough Council,http://statistics.data.gov.uk/id/local-authority/30UE,Unapportionable Central OHeads,1009,NEW Business Development & Growth,General Repairs - Reactive,20004,Repairs Maintenance & Alts,5005,Blanket order for REACTIVE works for 2016.,04/05/2016,111938,646.72,Revenue,Stringfellow Bldg Cntrctrs Ltd,17893
Chorley Borough Council,http://statistics.data.gov.uk/id/local-authority/30UE,Unapportionable Central OHeads,1009,NEW Business Development & Growth,General Repairs - Reactive,20004,Repairs Maintenance & Alts,5005,Blanket order for REACTIVE works for 2016.,06/05/2016,111986,569.67,Revenue,Stringfellow Bldg Cntrctrs Ltd,17893
Chorley Borough Council,http://statistics.data.gov.uk/id/local-authority/30UE,Capital,Capital,NEW Early Intervention,Grants,3002,Capital Expenditure,Capital,ADDRESS REDACTED,27/05/2016,112296,"5,300.00",Capital,Stringfellow Bldg Cntrctrs Ltd,17893
Chorley Borough Council,http://statistics.data.gov.uk/id/local-authority/30UE,Capital,Capital,NEW Early Intervention,Grants,3002,Capital Expenditure,Capital,ADDRESS REDACTED,13/05/2016,112297,"4,340.00",Capital,Stringfellow Bldg Cntrctrs Ltd,17893
Chorley Borough Council,http://statistics.data.gov.uk/id/local-authority/30UE,Unapportionable Central OHeads,1009,NEW Business Development & Growth,General Repairs - Reactive,20004,Repairs Maintenance & Alts,5005,Blanket order for REACTIVE works for 2016.,18/05/2016,112396,417.11,Revenue,Stringfellow Bldg Cntrctrs Ltd,17893
Chorley Borough Council,http://statistics.data.gov.uk/id/local-authority/30UE,Unapportionable Central OHeads,1009,NEW Business Development & Growth,General Repairs - Reactive,20004,Repairs Maintenance & Alts,5005,Blanket order for REACTIVE works for 2016.,27/05/2016,112460,370.00,Revenue,Stringfellow Bldg Cntrctrs Ltd,17893
Chorley Borough Council,http://statistics.data.gov.uk/id/local-authority/30UE,Unapportionable Central OHeads,1009,NEW Business Development & Growth,General Repairs - Reactive,20004,Repairs Maintenance & Alts,5005,Blanket order for REACTIVE works for 2016.,27/05/2016,112463,"1,060.39",Revenue,Stringfellow Bldg Cntrctrs Ltd,17893
Chorley Borough Council,http://statistics.data.gov.uk/id/local-authority/30UE,Capital,Capital,NEW Early Intervention,Grants,3002,Capital Expenditure,Capital,ADDRESS REDACTED,25/05/2016,112479,690.00,Capital,Stringfellow Bldg Cntrctrs Ltd,17893
Chorley Borough Council,http://statistics.data.gov.uk/id/local-authority/30UE,Unapportionable Central OHeads,1009,NEW Business Development & Growth,General Repairs - Reactive,20004,Repairs Maintenance & Alts,5005,Blanket order for REACTIVE works for 2016.,27/05/2016,112517,553.29,Revenue,Stringfellow Bldg Cntrctrs Ltd,17893
Chorley Borough Council,http://statistics.data.gov.uk/id/local-authority/30UE,Democratic Represent and  Mgnt,1007,NEW Customer & Digital,General Repairs - Reactive,20004,Repairs Maintenance & Alts,5005,ADDRESS REDACTED Allotments To supply and fit 2No. concrete posts for taps to be fitted to. To fit box around existing stop,20/05/2016,112541,440.00,Revenue,Stringfellow Bldg Cntrctrs Ltd,17893
Chorley Borough Council,http://statistics.data.gov.uk/id/local-authority/30UE,Unapportionable Central OHeads,1009,NEW Business Development & Growth,General Repairs - Reactive,20004,Repairs Maintenance & Alts,5005,Blanket order for REACTIVE works for 2016.,27/05/2016,112546,453.29,Revenue,Stringfellow Bldg Cntrctrs Ltd,17893
Chorley Borough Council,http://statistics.data.gov.uk/id/local-authority/30UE,Unapportionable Central OHeads,1009,NEW Business Development & Growth,General Repairs - Reactive,20004,Repairs Maintenance & Alts,5005,Blanket order for REACTIVE works for 2016.,27/05/2016,112547,404.89,Revenue,Stringfellow Bldg Cntrctrs Ltd,17893
Chorley Borough Council,http://statistics.data.gov.uk/id/local-authority/30UE,Unapportionable Central OHeads,1009,NEW Business Development & Growth,General Repairs - Reactive,20004,Repairs Maintenance & Alts,5005,Blanket order for REACTIVE works for 2016.,27/05/2016,112548,371.79,Revenue,Stringfellow Bldg Cntrctrs Ltd,17893
Chorley Borough Council,http://statistics.data.gov.uk/id/local-authority/30UE,Capital,Capital,NEW Early Intervention,Grants,3002,Capital Expenditure,Capital,ADDRESS REDACTED,27/05/2016,112622,"3,015.00",Capital,Stringfellow Bldg Cntrctrs Ltd,17893
Chorley Borough Council,http://statistics.data.gov.uk/id/local-authority/30UE,Capital,Capital,NEW Early Intervention,Grants,3002,Capital Expenditure,Capital,ADDRESS REDACTED,27/05/2016,112624,"3,450.00",Capital,Stringfellow Bldg Cntrctrs Ltd,17893
Chorley Borough Council,http://statistics.data.gov.uk/id/local-authority/30UE,Unapportionable Central OHeads,1009,NEW Policy & Governance,Mayors Medals,40029,"Equipment, Furniture & Materia",5023,Photography of Mayor and Consort at Astley Hall. 2 x framed portraits of Mayor and small photo of Mayor and Consort.,13/05/2016,112160,440.00,Revenue,Studio Twelve,17895
Chorley Borough Council,http://statistics.data.gov.uk/id/local-authority/30UE,Business Support,1095,NEW Business Development & Growth,Miscellaneous Expenses,40200,Miscellaneous Expenses,5034,Development appraisal for the project which is an assessment of the end value of the completed development based on market,25/05/2016,112633,"6,000.00",Revenue,Taylor Weaver,75437
Chorley Borough Council,http://statistics.data.gov.uk/id/local-authority/30UE,Capital,Capital,NEW Early Intervention,Main Contractor,3007,Capital Expenditure,Capital,Capital Works - all upgrade of equipment and control room,25/05/2016,111191,"145,083.24",Capital,Technology Solutions,72376
Chorley Borough Council,http://statistics.data.gov.uk/id/local-authority/30UE,Business Support,1095,NEW Business Development & Growth,Grants To Other Organisations,40127,Grants and Subscriptions,5031,subsidy 4,11/05/2016,112225,258.75,Revenue,The Buttonhole,18367
Chorley Borough Council,http://statistics.data.gov.uk/id/local-authority/30UE,Business Support,1095,NEW Business Development & Growth,Grants To Other Organisations,40127,Grants and Subscriptions,5031,Grants and Subscriptions,11/05/2016,112226,768.50,Revenue,The Buttonhole,18367
Chorley Borough Council,http://statistics.data.gov.uk/id/local-authority/30UE,Unapportionable Central OHeads,1009,NEW Policy & Governance,Copyright Licence Fees,40168,Miscellaneous Expenses,5034,CLA Public Administration Licence 1 May 2016 - 30 April 2017,20/05/2016,112327,"1,109.29",Revenue,The Copyright Licensing Agency Ltd,17480
Chorley Borough Council,http://statistics.data.gov.uk/id/local-authority/30UE,Democratic Represent and  Mgnt,1007,NEW Policy & Governance,Data Protection Registration,40173,Miscellaneous Expenses,5034,registration renewal,18/05/2016,112482,525.00,Revenue,The Information Commissioner,16278
Chorley Borough Council,http://statistics.data.gov.uk/id/local-authority/30UE,Planning Policy,1092,NEW Business Development & Growth,Consultants` Fees,40077,Services,5027,Chorley BC - Local Plan Final Report,20/05/2016,103494,"25,307.33",Revenue,The Planning Inspectorate,21538
Chorley Borough Council,http://statistics.data.gov.uk/id/local-authority/30UE,Unapportionable Central OHeads,1009,NEW Policy & Governance,General Subscriptions,40146,Grants and Subscriptions,5031,incorrect invoice,11/05/2016,112595,"5,000.00",Revenue,Trafford Council,52972
Chorley Borough Council,http://statistics.data.gov.uk/id/local-authority/30UE,Unapportionable Central OHeads,1009,NEW Policy & Governance,Awards/Trophies & Certificates,40030,"Equipment, Furniture & Materia",5023,10 engraved trophies for Civic Pride campaign,13/05/2016,112306,368.33,Revenue,TrophyStore.co.uk Ltd,75373
Chorley Borough Council,http://statistics.data.gov.uk/id/local-authority/30UE,Service Management & Support,1009,NEW Customer & Digital,Petrol,30005,Direct Transport Costs,5016,Apr-16,20/05/2016,112305,502.01,Revenue,Uk Fuels Ltd,57996
Chorley Borough Council,http://statistics.data.gov.uk/id/local-authority/30UE,Corporate Management,1008,NEW Policy & Governance,Exhibitions & Special Events,40158,Miscellaneous Expenses,5034,Two days of face painting as part of Easter holiday activities in Market Walk,11/05/2016,112077,350.00,Revenue,UK Media and Events Limited,71221
Chorley Borough Council,http://statistics.data.gov.uk/id/local-authority/30UE,Unapportionable Central OHeads,1009,NEW Customer & Digital,Service Fees,40056,Services,5027,Annual Billing and inserts 2016-17,18/05/2016,111475,"16,171.34",Revenue,UKMAIL Ltd (Mail),57758
Chorley Borough Council,http://statistics.data.gov.uk/id/local-authority/30UE,Unapportionable Central OHeads,1009,NEW Customer & Digital,Service Fees,40056,Services,5027,Annual Billing and inserts 2016-17,18/05/2016,111476,"3,551.12",Revenue,UKMAIL Ltd (Mail),57758
Chorley Borough Council,http://statistics.data.gov.uk/id/local-authority/30UE,Unapportionable Central OHeads,1009,NEW Customer & Digital,Postages,40082,Communication and Computing,5028,Imail Eco Business mono Letters - Hybrid,18/05/2016,111991,555.16,Revenue,UKMAIL Ltd (Mail),57758
Chorley Borough Council,http://statistics.data.gov.uk/id/local-authority/30UE,Unapportionable Central OHeads,1009,NEW Customer & Digital,Postages,40082,Communication and Computing,5028,Imail Eco Business mono Letters - Hybrid,18/05/2016,112439,"1,571.40",Revenue,UKMAIL Ltd (Mail),57758
Chorley Borough Council,http://statistics.data.gov.uk/id/local-authority/30UE,Unapportionable Central OHeads,1009,NEW Customer & Digital,Postages,40082,Communication and Computing,5028,Imail Eco Business mono Letters - Hybrid,18/05/2016,112447,586.68,Revenue,UKMAIL Ltd (Mail),57758
Chorley Borough Council,http://statistics.data.gov.uk/id/local-authority/30UE,Business Support,1095,NEW Business Development & Growth,Miscellaneous Expenses,40200,Miscellaneous Expenses,5034,For delinquent business loans - Unify Credit Union,13/05/2016,112393,910.00,Revenue,Unify Credit Union Ltd,55509
Chorley Borough Council,http://statistics.data.gov.uk/id/local-authority/30UE,Control Accounts,Control,NEW Policy & Governance,General Balances,100,Balance Sheet,Balance,salary deds may 16,18/05/2016,112484,"1,927.40",Revenue,Unify Credit Union Ltd,55509
Chorley Borough Council,http://statistics.data.gov.uk/id/local-authority/30UE,Development Control,1091,NEW Customer & Digital,Professional Fees,40063,Services,5027,Planning support,27/05/2016,112679,"2,646.99",Revenue,Urban Vision Partnership Ltd,21181
Chorley Borough Council,http://statistics.data.gov.uk/id/local-authority/30UE,Business Support,1095,NEW Business Development & Growth,Miscellaneous Expenses,40200,Miscellaneous Expenses,5034,growth grant,25/05/2016,112589,"6,000.00",Revenue,Utilisoft,72794
Chorley Borough Council,http://statistics.data.gov.uk/id/local-authority/30UE,Democratic Represent and  Mgnt,1007,NEW Customer & Digital,Hospitality,40201,Miscellaneous Expenses,5034,Astley Park Walled Garden - Glasshouse and associated work,11/05/2016,112088,"22,779.24",Revenue,Victorian Greenhouses UK Ltd,74967
Chorley Borough Council,http://statistics.data.gov.uk/id/local-authority/30UE,Democratic Represent and  Mgnt,1007,NEW Customer & Digital,Hospitality,40201,Miscellaneous Expenses,5034,Astley Park Walled Garden - Glasshouse and associated work,25/05/2016,112443,"22,779.23",Revenue,Victorian Greenhouses UK Ltd,74967
Chorley Borough Council,http://statistics.data.gov.uk/id/local-authority/30UE,Central Support Services,1009,NEW Customer & Digital,Internet Charges,40104,Communication and Computing,5028,Apr-16,25/05/2016,112592,"1,133.07",Revenue,Virgin Media Payments Ltd,17632
Chorley Borough Council,http://statistics.data.gov.uk/id/local-authority/30UE,Central Support Services,1009,NEW Customer & Digital,Internet Charges,40104,Communication and Computing,5028,May-16,25/05/2016,112593,"1,092.47",Revenue,Virgin Media Payments Ltd,17632
Chorley Borough Council,http://statistics.data.gov.uk/id/local-authority/30UE,Unapportionable Central OHeads,1009,NEW Policy & Governance,Fire Extinguishers,20074,Fixtures and Fittings,5010,"Service of Fire Extinguishers at the Town Hall April 2016 56-Extinguisher Units serviced =3.50 2-Fire blankets Serviced =1.00 ",06/05/2016,112018,511.75,Revenue,Walker Fire (UK) Ltd,17092
Chorley Borough Council,http://statistics.data.gov.uk/id/local-authority/30UE,Capital,Capital,NEW Business Development & Growth,Other Capital Related Fees,3024,Capital Expenditure,Capital,Extension and refurbishment of Cotswold House as per Emailed quote on 16/3/16.,27/05/2016,112163,"2,530.21",Capital,Walmsley Associates Ltd,75156
Chorley Borough Council,http://statistics.data.gov.uk/id/local-authority/30UE,Economic Development,1096,NEW Business Development & Growth,Promotional Expenses,40159,Miscellaneous Expenses,5034,1000 x Chorley Market Promotional Albion Grip Ball Pen Full Colour Code - 002108651 1000 x Chorley Market Promotional Memo,06/05/2016,112014,931.00,Revenue,WeBrand4You,68716
Chorley Borough Council,http://statistics.data.gov.uk/id/local-authority/30UE,Unapportionable Central OHeads,1009,NEW Chief Executive,Postages,40082,Communication and Computing,5028,"Weekly mail collections for weeks 1, 2, 10, 11, 12 & 13",25/05/2016,111474,380.74,Revenue,Whistl North Limited,67256
Chorley Borough Council,http://statistics.data.gov.uk/id/local-authority/30UE,Unapportionable Central OHeads,1009,NEW Chief Executive,Postages,40082,Communication and Computing,5028,"Mail Collection for Town Hall and Union Street, April 2016 - March 2017",25/05/2016,112319,595.11,Revenue,Whistl North Limited,67256
Chorley Borough Council,http://statistics.data.gov.uk/id/local-authority/30UE,Unapportionable Central OHeads,1009,NEW Chief Executive,Postages,40082,Communication and Computing,5028,"Weekly mail collections for weeks 1, 2, 10, 11, 12 & 13",25/05/2016,112325,410.28,Revenue,Whistl North Limited,67256
Chorley Borough Council,http://statistics.data.gov.uk/id/local-authority/30UE,Unapportionable Central OHeads,1009,NEW Chief Executive,Postages,40082,Communication and Computing,5028,"Mail Collection for Town Hall and Union Street, April 2016 - March 2017",25/05/2016,112338,659.31,Revenue,Whistl North Limited,67256
Chorley Borough Council,http://statistics.data.gov.uk/id/local-authority/30UE,Unapportionable Central OHeads,1009,NEW Chief Executive,Postages,40082,Communication and Computing,5028,"Mail Collection for Town Hall and Union Street, April 2016 - March 2017",25/05/2016,112386,868.00,Revenue,Whistl North Limited,67256
Chorley Borough Council,http://statistics.data.gov.uk/id/local-authority/30UE,Unapportionable Central OHeads,1009,NEW Chief Executive,Postages,40082,Communication and Computing,5028,Postages,25/05/2016,112391,567.03,Revenue,Whistl North Limited,67256
Chorley Borough Council,http://statistics.data.gov.uk/id/local-authority/30UE,Unapportionable Central OHeads,1009,NEW Chief Executive,Postages,40082,Communication and Computing,5028,"Weekly mail collections for weeks 1, 2, 10, 11, 12 & 13",27/05/2016,112688,318.67,Revenue,Whistl North Limited,67256
Chorley Borough Council,http://statistics.data.gov.uk/id/local-authority/30UE,Democratic Represent and  Mgnt,1007,NEW Policy & Governance,Exhibitions & Special Events,40158,Miscellaneous Expenses,5034,"Curatorial services on the Sacrifice Project in April 2016: 6 days @ 104.33 [Apr 1, 2, 6, 13, 18, 27] 5 hours @13.91 [15th x",11/05/2016,112080,695.50,Revenue,Whittle and Draper Fine Art,52271
Chorley Borough Council,http://statistics.data.gov.uk/id/local-authority/30UE,Business Support,1095,NEW Business Development & Growth,Rent/Hire Of Premises,20017,Premises Rents,5007,Annual rent for the Royal Oak.,11/05/2016,111422,"13,750.00",Revenue,Whittle Jones Group Ltd,75356
Chorley Borough Council,http://statistics.data.gov.uk/id/local-authority/30UE,Unapportionable Central OHeads,1009,NEW Policy & Governance,Publications,40054,"Printing, Stationery & General",5026,CCH VAT Standard 20th may 2016 to 19th May 2017,11/05/2016,112129,442.90,Revenue,Wolters Kluwer (UK) Ltd,16273
Chorley Borough Council,http://statistics.data.gov.uk/id/local-authority/30UE,Unapportionable Central OHeads,1009,NEW Customer & Digital,Photocopier Charges,40047,"Printing, Stationery & General",5026,standard charges,06/05/2016,111777,319.71,Revenue,Xeretec Document Solutions,20052
Chorley Borough Council,http://statistics.data.gov.uk/id/local-authority/30UE,Unapportionable Central OHeads,1009,NEW Policy & Governance,Staff General Travel Expenses,30030,Public Transport,5019,Taxi for employee between Chorley Town Hall to Barleyfiled Clayton-Le-Woods Thursday 7th April 5pm Town Hall to Barleyfiel,11/05/2016,112162,263.50,Revenue,Yellow Cabs (North West Ltd),52276
Chorley Borough Council,http://statistics.data.gov.uk/id/local-authority/30UE,Democratic Represent and  Mgnt,1007,NEW Policy & Governance,Exhibitions & Special Events,40158,Miscellaneous Expenses,5034,"Astley Hall Museum and Art Gallery - Sacrifice Exhibition Oblong double folding table D20397 49.95 Soundplus Tramp ST80 PA",11/05/2016,112141,332.51,Revenue,Yorkshire Purchasing Org,18098
Chorley Borough Council,http://statistics.data.gov.uk/id/local-authority/30UE,Central Support Services,1009,NEW Early Intervention,Play Development,40182,Miscellaneous Expenses,5034,Supply 2 x Lego Classroom set product code 849359,18/05/2016,112143,270.70,Revenue,Yorkshire Purchasing Org,18098
